Workbook

Sheet TitlePage
A1: Title page | B1: This is a custom workbook that is not produced by WorksheetMaker. See Chemical Notes for details. Corrected July, 2016. See Revisions worksheet.
C6: 3,5,6-Trichloro-2-pyridinol (TCP) from Emergent Aqautic Applications of Triclopyr
E17: Worksheet Version | F17: 6.00.01
A51: 2011-02-20
A52: July 10, 2016 (Major corrections)

Sheet General Notes
A1: General Notes
B2: Prepared by: | C2: Patrick R Durkin
B3: Program Version: | C3: 6.00.01
B4: Database Used: | C4: FS WsMkr V5-01a.mdb
B5: Template Workbook: | C5: FS WsMkr V5-01a.mdb
B6: Base Workbook: | C6: FS WSMkr Blank V05-01a.xlsm
A8: Color Codes in WorksheetMaker Version 5
A13: Color Codes used in Workbook for Front Matter, Data and Calculation Worksheets
B14: Green shading | C14: This is a default value or a user specified a value. You can change these values as you see fit but you should have a reason for doing so.
B15: Yellow shading | C15: This is a source for a link in other parts of the workbook. If you have good reason to change the value, you should note the change (with your reason) in the “Revisions” page.
B16: Blue shading | C16: This cell is linked to another cell in the workbook. Do not change this value. If you change any of these values, the workbook may not update correctly.
B17: Blue shading blue border | C17: This cell is linked to a Program parameter in Worksheet A01. Do not change this value. If you want the value to change, go to Worksheet A01 and change the value in that worksheet.
B18: Purple Shading | C18: Indicates (for information only) that the typical of order of Lower and Upper values is intentionally reversed. This is only used in the second (label) column.
B19: Italics, no shading | C19: The value in this cell is generated by a formula (the number that you see is the result of an equation). This cell is linked only to other cells in the worksheet. Do not change this value.
A25: Color Codes used in Workbook for Risk Characterization Worksheets
B26: HQ ≥ 2 | C26: For hazard quotient greater than 2, the number is in bold font with a red background and rounded to the nearest integer.
B27: HQ > 1 but < 2 | C27: For hazard quotient greater than 1 but less than two, the number is in bold font with a white background and rounded to one significant place after the decimal.
B28: HQ ≥ 0.1 but <1 | C28: For hazard quotient greater than 0.1 but less than one, the number is in regular font with a white background and rounded to one significant place after the decimal.
B29: HQ < 0.1 | C29: For hazard quotient less than 0.1, the number is in regular font with a white background. The number is expressed in scientific notation and rounded to one significant place -- e.g., 2E-02 rather than 0.02.
B55: Prepared by: | C55: Patrick R Durkin
B56: Program Version: | C56: 6.00.01
B57: Database Used: | C57: FS WsMkr V5-01a.mdb
B58: Template Workbook: | C58: FS WsMkr V5-01a.mdb
B59: Base Workbook: | C59: FS WSMkr Blank V05-01a.xlsm

Sheet Chemical Notes
A1: Chemical specific notes
A2: Risk Assessment: | D2: SERA TR-052-25-03c
A3: Report Date: | D3: May 24, 2011 with corrections to July 2016.
A6: The area below is an embedded MS Word Document. Add chemical-specific notes as appropriate.

Sheet Revisions
A1: Revision Histroy
A8: The area below is an embedded MS Word Document. Add revision notes as appropriate.

Sheet Contents
B1: Table of Contents | C1: Toc
A2: Work-sheet No. | B2: Worksheet Title
A3: TitlePage | B3: Title page
A4: General Notes | B4: General Notes
A5: Chemical Notes | B5: Chemical specific notes
A6: Revisions | B6: Revision Histroy
A7: Contents
A8: A01 | B8: Program Data: Application rates, application volumns, and concentrations in field solutions
A9: A02 | B9: General reference values and exposure factors used in worksheets.
A10: A03 | B10: Consumption values used in worksheets
A11: B01 | B11: Chemical and Physical Properties for TCP-Triclop
A12: B02 | B12: Toxicity values for TCP-Triclop
A13: B03a | B13: Calculation of Zero-Order Dermal Permeability Rate (Kp) in cm/hour
A14: B03b | B14: Calculation of First-Order Dermal Absorption Rate
A15: B04a | B15: Estimates of Water Contamination Rates -- i.e., the concentration in ambient water per pound applied per acre
A16: B04b | B16: Pond: Concentration of pesticide (liquid formulation) in pond water after an accidental spill
A17: D05 | B17: Acute exposure of Child after an accidental spill of the pesticide into a pond
A18: D06 | B18: Consumption of contaminated water, Child, acute exposure
A19: D07 | B19: Consumption of contaminated water, Child, chronic exposure
A20: D08a | B20: Acute scenario for the consumption of contaminated fish by Adult Male after an accidental spill of the pesticide into a pond
A21: D08b | B21: Acute scenario for the consumption of contaminated fish by Subsistence Populations after an accidental spill of the pesticide into a pond
A22: D09a | B22: Consumption of contaminated fish, Adult Male, chronic exposure
A23: D09b | B23: Consumption of contaminated fish, Subsistence Populations, chronic exposure
A24: D09c | B24: Consumption of contaminated fish, Adult Male, acute exposure
A25: D09d | B25: Consumption of contaminated fish, Subsistence Populations, acute exposure
A26: D11 | B26: Swimming Exposure Assessment Using Zero-Order Absorption, Adult Female, Surface Area, Whole body, for 60 minute(s)
A27: E03 | B27: Worksheet E03: Summary of Exposure Assessments for the General Public
A28: E04 | B28: Worksheet E03: Summary of Hazard Quotients (Toxicity) for the General Public
A29: F02a | B29: Acute exposure of Small Mammal after an accidental spill of the pesticide into a pond
A30: F02b | B30: Acute exposure of 400 gram mammal (e.g., squirrel) after an accidental spill of the pesticide into a pond
A31: F02c | B31: Acute exposure of Carnivorous mammal after an accidental spill of the pesticide into a pond
A32: F02d | B32: Acute exposure of Large Mammal after an accidental spill of the pesticide into a pond
A33: F02e | B33: Acute exposure of Small Bird after an accidental spill of the pesticide into a pond
A34: F02f | B34: Acute exposure of Large Bird after an accidental spill of the pesticide into a pond
A35: F03a | B35: Acute scenario for the consumption of contaminated Fish by Large Carnivorous Mammal after an accidental spill of the pesticide into a pond
A36: F03b | B36: Acute scenario for the consumption of contaminated Fish by Carnivorous mammal after an accidental spill of the pesticide into a pond
A37: F03c | B37: Acute scenario for the consumption of contaminated Fish by Bird (piscivorous) after an accidental spill of the pesticide into a pond
A38: F09a | B38: acute scenario for the consumption of contaminated Fish by Large Carnivorous Mammal after an accidental spill of the pesticide into a pond
A39: F09b | B39: acute scenario for the consumption of contaminated Fish by Carnivorous mammal after an accidental spill of the pesticide into a pond
A40: F09c | B40: acute scenario for the consumption of contaminated Fish by Bird (piscivorous) after an accidental spill of the pesticide into a pond
A41: F12a | B41: Consumption of contaminated water, Small Mammal, chronic exposure
A42: F12b | B42: Consumption of contaminated water, 400 gram mammal (e.g., squirrel), chronic exposure
A43: F12c | B43: Consumption of contaminated water, Carnivorous mammal, chronic exposure
A44: F12d | B44: Consumption of contaminated water, Large Mammal, chronic exposure
A45: F12e | B45: Consumption of contaminated water, Small Bird, chronic exposure
A46: F12f | B46: Consumption of contaminated water, Large Bird, chronic exposure
A47: G01 | B47: Summary of Exposure Assessments for the Terrestrial Animals
A48: G02 | B48: Summary of Hazard Quotients (Toxicity) for the Terrestrial Animals
A49: G03 | B49: Worksheet G03: Summary of Hazard Quotients for Aquatic Species
A50: References | B50: References cited in workbook

Sheet A01
A1: Program Data: Application rates, application volumns, and concentrations in field solutions
A2: Parameter/Assumption | B2: Code / Range | C2: Equation/ Value | D2: Units | E2: Reference/ Equation
A3: Application Rate | B3: ApRt | C3: 2 | D3: lb/acre | E3: Program Input
A4: Application Volume | B4: ApVol
B5: Central | C5: 25 | D5: gal/acre | E5: Program Input
B6: Upper | C6: 40 | E6: Program Input
B7: Lower | C7: 5 | E7: Program Input
A8: Concentration in field solution (lb/gal) | B8: Concppg | C8: ApRt (lb/acre) / ApVol (gal/acre) | E8: Note 1
B9: Central | C9: =IF(C5>0, C$3/C5, "N/A") -> 0.08 | D9: lb/gal | E9: Eq
B10: Lower | C10: =IF(C6>0, C$3/C6, "N/A") -> 0.05 | E10: Eq
B11: Upper | C11: =IF(C7>0, C$3/C7, "N/A") -> 0.4 | E11: Eq
A12: Conversion Factor for lbs/gal to mg/mL | B12: CnvF | C12: 119.8 | D12: mg/mL per lb/gal
A13: Concentration in field solution (mg/mL) | B13: FldConc | C13: Concppg * CnvF | E13: Note 2
B14: Central | C14: =IF(C5>0, DigitRound( C9*C$12, C$17), "NA") -> 9.6 | D14: mg/mL | E14: Eq
B15: Lower | C15: =IF(C6>0, DigitRound( C10*C$12, C$17), "NA") -> 6 | E15: Eq
B16: Upper | C16: =IF(C7>0, DigitRound( C11*C$12, C$17), "NA") -> 48 | E16: Eq
A17: Number of significant figures used for FldConc. | B17: NSig | C17: 2
A20: Number of Applications | B20: nApps | C20: 1 | D20: Unitless | E20: Program Input
A21: Application Interval | B21: ApIntv | C21: 1 | D21: Days | E21: Program Input
A22: Standard Values/Options for Scenarios
A23: Surface area of pond for spill | B23: PondSA_M | C23: 1000 | D23: Sq. Meters | E23: Risk assessment.
A24: Pond depth | B24: PondDepthM | C24: 1 | D24: Meters | E24: Risk assessment.
A25: Stream flow rate for drift scenario | B25: StreamFlowLD | C25: 710000 | D25: Liters/day | E25: Risk assessment.
A26: Stream length for drift scenario | B26: StreamLengthFt | C26: 1038 | D26: Feet | E26: Risk assessment.
A27: Stream width for drift scenario | B27: StreamWidthFt | C27: 6 | D27: Feet | E27: Risk assessment.
A28: Duration for longer-term exposures | B28: SubChDays | C28: 90 | D28: Days | E28: Risk assessment.
A29: Duration for swimming scenarios | B29: SwimMin | C29: 60 | D29: Minutes | E29: Risk assessment.
A30: Protection factor for workers based on PPE. | B30: WrkProtectFact
B31: Central | C31: 0 | E31: Risk assessment.
B32: Lower | C32: 0
B33: Upper | C33: 0
A34: Toxic Equivalency Factor for formulation | B34: TEF
B35: Central | C35: 1 | E35: Risk assessment.
B36: Lower | C36: 1
B37: Upper | C37: 1
A38: Used in food commody worksheets | B38: DriftToFood
B39: Central | C39: 1 | E39: Risk assessment.
B40: Lower | C40: 1
B41: Upper | C41: 1
A42: Amount spilled into ponds | B42: PondSpillVolGal
B43: Central | C43: 100 | D43: Gal | E43: Risk assessment.
B44: Lower | C44: 20
B45: Upper | C45: 200
A46: Dislodgeable residue, as a proportion of the application rate. | B46: DislogRes
B47: Central | C47: 0.1 | E47: Risk assessment.
B48: Lower | C48: 0.1
B49: Upper | C49: 0.1
A50: Residue rates for short grass | B50: VegRRSGT
B51: Central | C51: 85 | D51: ppm per lb/ac | E51: Risk assessment.
B52: Lower | C52: 30
B53: Upper | C53: 240
A54: Residue rates for long grass | B54: VegRRTGT
B55: Central | C55: 36 | D55: ppm per lb/ac | E55: Risk assessment.
B56: Lower | C56: 12
B57: Upper | C57: 110
A58: Residue rates for broadleaf/forage plants and small insects | B58: VegRRBLT
B59: Central | C59: 45 | D59: ppm per lb/ac | E59: Risk assessment.
B60: Lower | C60: 15
B61: Upper | C61: 135
A62: Residue rates for fruit | B62: VegRRFRT
B63: Central | C63: 7 | D63: ppm per lb/ac | E63: Risk assessment.
B64: Lower | C64: 3.2
B65: Upper | C65: 15
A66: Worker Exposure Rate | B66: WrkExpRate
B67: Central | C67: 0.003 | D67: Mg/kg bw per lb | E67: Risk assessment.
B68: Lower | C68: 0.0003
B69: Upper | C69: 0.01
A70: Number of acres that the worker will treat per hour. | B70: WrkAcPerHr
B71: Central | C71: 0.625 | D71: Acres/hr | E71: Risk assessment.
B72: Lower | C72: 0.25
B73: Upper | C73: 1
A74: Number of hours of worker exposure per day. | B74: WrkHsPerDy
B75: Central | C75: 7 | D75: Hrs/day | E75: Risk assessment.
B76: Lower | C76: 6
B77: Upper | C77: 8

Sheet A02
A1: General reference values and exposure factors used in worksheets.
A2: Receptor | B2: Factor | C2: Value | D2: Units | E2: Reference | F2: Reference Note
A3: Adult Female | B3: Body weight | C3: 64 | D3: kg | E3: U.S. EPA/ORD 1985 | F3: page 5, Table 2-2
A4: Adult Female | B4: Surface Area, Feet and lower Legs | C4: 2915 | D4: cm2 | E4: U.S. EPA/ORD 1992 | F4: p. 8-11, Table 8-3, total for feet and lower legs
A5: Adult Female | B5: Surface Area, Wearing shorts and T-shirt | C5: 5300 | D5: cm2 | E5: U.S. EPA/ORD 1992 | F5: p. 8-11, Table 8-3, total for arms, hands, lower legs, and feet.
A6: Adult Female | B6: Surface Area, Whole body | C6: 16900 | D6: cm2 | E6: U.S. EPA/ORD 1997 | F6: p. 6-13, Table 6-3, whole body, 50th percentile
A7: Adult Male | B7: Body weight | C7: 70 | D7: kg | E7: ICRP 1975 | F7: p. 13.
A8: Subsistence Populations | B8: Body weight | C8: 70 | D8: kg | E8: ICRP 1975 | F8: p. 13
A9: Amphibian | B9: Kilocalories, alpha parameter for allometric equation | C9: 0.054 | D9: BW(g),Kcal (kcal/day) | E9: U.S. EPA/ORD 1993 | F9: p. 3-7, equation 3-14
A10: Amphibian | B10: Kilocalories, beta parameter for allometric equation | C10: 0.799 | D10: BW(g),Kcal (kcal/day) | E10: U.S. EPA/ORD 1993 | F10: p. 3-7, equation 3-14
A11: AmphBullFrog | B11: Food consumption, alpha parameter for allometric equation | C11: 1.09 | D11: BW(g),FC(g) | E11: SERA 2010 | F11: Figure 15
A12: AmphBullFrog | B12: Food consumption, beta parameter for allometric equation | C12: 0.1723 | D12: BW(g),FC(g) | E12: SERA 2010 | F12: Figure 15
A13: Aerial Spray Worker | B13: Absorbed dose rate, central estimate | C13: 3e-05 | D13: (mg/kg bw)/(lbs handled per day) | E13: SERA 2007 | F13: Acres treated per hour
A14: Aerial Spray Worker | B14: Absorbed dose rate, lower range | C14: 1e-06 | D14: (mg/kg bw)/(lbs handled per day) | E14: SERA 2007 | F14: Acres treated per hour
A15: Aerial Spray Worker | B15: Absorbed dose rate, upper range | C15: 0.0001 | D15: (mg/kg bw)/(lbs handled per day) | E15: SERA 2007 | F15: Acres treated per hour
A16: Aerial Spray Worker | B16: Hours of application per day, central estimate | C16: 7 | D16: Hours per day | E16: USDA 1989a | F16: N/A
A17: Aerial Spray Worker | B17: Hours of application per day, lower range | C17: 6 | D17: Hours per day | E17: USDA 1989a | F17: N/A
A18: Aerial Spray Worker | B18: Hours of application per day, upper range | C18: 8 | D18: Hours per day | E18: USDA 1989a | F18: N/A
A19: Aerial Spray Worker | B19: Acres treated per hour, central estimate | C19: 70 | D19: acres/hour | E19: USDA 1989a | F19: Acres treated per hour
A20: Aerial Spray Worker | B20: Acres treated per hour, lower range | C20: 40 | D20: acres/hour | E20: USDA 1989a | F20: Acres treated per hour
A21: Aerial Spray Worker | B21: Acres treated per hour, upper range | C21: 100 | D21: acres/hour | E21: USDA 1989a | F21: Acres treated per hour
A22: Backpack Worker | B22: Absorbed dose rate, central estimate | C22: 0.003 | D22: (mg/kg bw)/(lbs handled per day) | E22: SERA 2007 | F22: Acres treated per hour
A23: Backpack Worker | B23: Absorbed dose rate, lower range | C23: 0.0003 | D23: (mg/kg bw)/(lbs handled per day) | E23: SERA 2007 | F23: Acres treated per hour
A24: Backpack Worker | B24: Absorbed dose rate, upper range | C24: 0.01 | D24: (mg/kg bw)/(lbs handled per day) | E24: SERA 2007 | F24: Acres treated per hour
A25: Backpack Worker | B25: Hours of application per day, central estimate | C25: 7 | D25: Hours per day | E25: USDA 1989a | F25: N/A
A26: Backpack Worker | B26: Hours of application per day, lower range | C26: 6 | D26: Hours per day | E26: USDA 1989a | F26: N/A
A27: Backpack Worker | B27: Hours of application per day, upper range | C27: 8 | D27: Hours per day | E27: USDA 1989a | F27: N/A
A28: Backpack Worker | B28: Acres treated per hour, central estimate | C28: 0.625 | D28: acres/hour | E28: USDA 1989a | F28: Acres treated per hour
A29: Backpack Worker | B29: Acres treated per hour, lower range | C29: 0.25 | D29: acres/hour | E29: USDA 1989a | F29: Acres treated per hour
A30: Backpack Worker | B30: Acres treated per hour, upper range | C30: 1 | D30: acres/hour | E30: USDA 1989a | F30: Acres treated per hour
A31: Birds | B31: Food consumption, alpha parameter for allometric equation | C31: 0.648 | D31: BW(g),FC(g) | E31: U.S. EPA/ORD 1993 | F31: Eq. 3-3, p. 3-4, all birds
A32: Birds | B32: Food consumption, beta parameter for allometric equation | C32: 0.651 | D32: BW(g),FC(g) | E32: U.S. EPA/ORD 1993 | F32: Eq. 3-3, p. 3-4, all birds
A33: Carnivorous bird | B33: Body weight | C33: 0.64 | D33: kg | E33: Dunning 1993 | F33: p. 97. Female Spotted Owl (Strix occidentalis). Range of 548 to 760 g.
A34: Carnivorous bird | B34: Kilocalories, alpha parameter for allometric equation | C34: 1.146 | D34: BW(g),KCal(kcal/day) | E34: U.S. EPA/ORD 1993 | F34: Eq. 3-37, nonpasserines
A35: Carnivorous bird | B35: Kilocalories, beta parameter for allometric equation | C35: 0.749 | D35: BW(g),KCal(kcal/day) | E35: U.S. EPA/ORD 1993 | F35: Eq. 3-37, nonpasserines
A36: Carnivorous bird | B36: Water consumption, alpha parameter for allometric equation | C36: 0.059 | D36: BW(kg), WC(L) | E36: U.S. EPA/ORD 1993 | F36: Eq. 3-15, p. 3-8
A37: Carnivorous bird | B37: Water consumption, beta parameter for allometric equation | C37: 0.67 | D37: BW(kg), WC(L) | E37: U.S. EPA/ORD 1993 | F37: Eq. 3-15, p. 3-8
A38: Large Bird | B38: Body weight | C38: 4 | D38: kg | E38: Default | F38: Canada goose
A39: Large Bird | B39: Kilocalories, alpha parameter for allometric equation | C39: 1.146 | D39: BW(g),KCal(kcal/day) | E39: U.S. EPA/ORD 1993 | F39: Eq. 3-37, non-passerines
A40: Large Bird | B40: Kilocalories, beta parameter for allometric equation | C40: 0.749 | D40: BW(g),KCal(kcal/day) | E40: U.S. EPA/ORD 1993 | F40: Eq. 3-37, non-passerines
A41: Large Bird | B41: Water consumption, alpha parameter for allometric equation | C41: 0.059 | D41: BW(kg), WC(L) | E41: U.S. EPA/ORD 1993 | F41: Eq. 3-15, p. 3-8
A42: Large Bird | B42: Water consumption, beta parameter for allometric equation | C42: 0.67 | D42: BW(kg), WC(L) | E42: U.S. EPA/ORD 1993 | F42: Eq. 3-15, p. 3-8
A43: Bird, non-Passerine | B43: Food consumption, alpha parameter for allometric equation | C43: 0.301 | D43: BW(g),FC(g) | E43: U.S. EPA/ORD 1993 | F43: Eq. 3-5, p. 3-5, non-passerines
A44: Bird, non-Passerine | B44: Food consumption, beta parameter for allometric equation | C44: 0.751 | D44: BW(g),FC(g) | E44: U.S. EPA/ORD 1993 | F44: Eq. 3-5, p. 3-5, non-passerines
A45: Bird, Passerine | B45: Food consumption, alpha parameter for allometric equation | C45: 0.398 | D45: BW(g),FC(g) | E45: U.S. EPA/ORD 1993 | F45: Eq. 3-4, p. 3-4, passerines
A46: Bird, Passerine | B46: Food consumption, beta parameter for allometric equation | C46: 0.85 | D46: BW(g),FC(g) | E46: U.S. EPA/ORD 1993 | F46: Eq. 3-4, p. 3-4, passerines
A47: Bird (piscivorous) | B47: Body weight | C47: 2.4 | D47: kg | E47: Sibley 2000 | F47: p. 60. Great Blue Heron
A48: Bird (piscivorous) | B48: Food consumption, alpha parameter for allometric equation | C48: 0.495 | D48: BW(g), FC(g) | E48: U.S. EPA/ORD 1993 | F48: Eq. 3-6, p. 3-5, seabird
A49: Bird (piscivorous) | B49: Food consumption, beta parameter for allometric equation | C49: 0.704 | D49: BW(g), FC(g) | E49: U.S. EPA/ORD 1993 | F49: Eq. 3-6, p. 3-5, seabird
A50: Bird (piscivorous) | B50: Kilocalories, alpha parameter for allometric equation | C50: 1.916 | D50: BW(g),KCal(kcal/day) | E50: U.S. EPA/ORD 1993 | F50: Eq. 3-38, p. 3-23, seabird
A51: Bird (piscivorous) | B51: Kilocalories, beta parameter for allometric equation | C51: 0.704 | D51: BW(g),KCal(kcal/day) | E51: U.S. EPA/ORD 1993 | F51: Eq. 3-38, p. 3-23, seabird
A52: Bird (piscivorous) | B52: Water consumption, alpha parameter for allometric equation | C52: 0.059 | D52: BW(kg), WC(L) | E52: U.S. EPA/ORD 1993 | F52: Eq. 3-15, p. 3-8
A53: Bird (piscivorous) | B53: Water consumption, beta parameter for allometric equation | C53: 0.67 | D53: BW(kg), WC(L) | E53: U.S. EPA/ORD 1993 | F53: Eq. 3-15, p. 3-8
A54: Small Bird | B54: Body weight | C54: 0.01 | D54: kg | E54: Default | F54: N/A
A55: Small Bird | B55: Kilocalories, alpha parameter for allometric equation | C55: 3.12 | D55: BW(g),KCal(kcal/day) | E55: U.S. EPA/ORD 1993 | F55: Equation 3-36, passerines
A56: Small Bird | B56: Kilocalories, beta parameter for allometric equation | C56: 0.605 | D56: BW(g),KCal(kcal/day) | E56: U.S. EPA/ORD 1993 | F56: Equation 3-36, passerines
A57: Small Bird | B57: Water consumption, alpha parameter for allometric equation | C57: 0.059 | D57: BW(kg), WC(L) | E57: U.S. EPA/ORD 1993 | F57: Eq. 3-15, p. 3-8
A58: Small Bird | B58: Water consumption, beta parameter for allometric equation | C58: 0.67 | D58: BW(kg), WC(L) | E58: U.S. EPA/ORD 1993 | F58: Eq. 3-15, p. 3-8
A59: Child | B59: Body weight | C59: 13.3 | D59: kg | E59: U.S. EPA/ORD 1996 | F59: p. 7-1, Table 7-2
A60: Child | B60: Surface Area, Whole body | C60: 6030 | D60: cm2 | E60: U.S. EPA/ORD 1996 | F60: p. 6-15, Table 6-6, 50th percentile.
A61: Conversion Factors | B61: acrefoot2gal | C61: 325900 | D61: gal/acre-foot | E61: Budavari 1989 | F61: N/A
A62: Conversion Factors | B62: liters per gal | C62: 3.785 | D62: L/gal | E62: Budavari 1989 | F62: N/A
A63: Conversion Factors | B63: pound per milligram | C63: 453600 | D63: mg/lb | E63: Budavari 1989 | F63: N/A
A64: Conversion Factors | B64: lbac2mgcm2 | C64: 0.01121 | D64: mg/cm2 per lb/acre | E64: Budavari 1989 | F64: N/A
A65: Conversion Factors | B65: lbac2ugcm2 | C65: 11.21 | D65: ug/cm2 per lb/acre | E65: Budavari 1989 | F65: N/A
A66: Conversion Factors | B66: conversion for milligrams to pounds | C66: 2.204e-06 | D66: lb/mg | E66: Budavari 1989 | F66: N/A
A67: Conversion Factors | B67: conversion for milliliters to gallons | C67: 3785 | D67: ml/gal | E67: Budavari 1989 | F67: N/A
A68: Small Insects | B68: Caloric content (wet weight) | C68: 1.5 | D68: kcal/g (wet weight) | E68: U.S. EPA/ORD 1993 | F68: Table 4-1, p. 4-13. Value for beetles. Wet weight
A69: Fish | B69: Caloric content (wet weight) | C69: 1.2 | D69: kcal/g (wet weight) | E69: U.S. EPA/ORD 1993 | F69: Table 4-1, p. 4-13. Value for bony fish. Wet weight
A70: Vegetation | B70: Caloric content (dry weight) | C70: 2.26 | D70: kcal/g | E70: U.S. EPA/ORD 1993 | F70: p. 3-5, Table 3-1
A71: Vegetation | B71: Water content (proportion) | C71: 0.85 | D71: unitless | E71: U.S. EPA/ORD 1993 | F71: p. 4-14
A72: Ground Spray Worker | B72: Absorbed dose rate, central estimate | C72: 0.0002 | D72: (mg/kg bw)/(lbs handled per day) | E72: SERA 2007 | F72: Acres treated per hour
A73: Ground Spray Worker | B73: Absorbed dose rate, lower range | C73: 1e-05 | D73: (mg/kg bw)/(lbs handled per day) | E73: SERA 2007 | F73: Acres treated per hour
A74: Ground Spray Worker | B74: Absorbed dose rate, upper range | C74: 0.0009 | D74: (mg/kg bw)/(lbs handled per day) | E74: SERA 2007 | F74: Acres treated per hour
A75: Ground Spray Worker | B75: Hours of application per day, central estimate | C75: 7 | D75: Hours per day | E75: USDA 1989a | F75: N/A
A76: Ground Spray Worker | B76: Hours of application per day, lower range | C76: 6 | D76: Hours per day | E76: USDA 1989a | F76: N/A
A77: Ground Spray Worker | B77: Hours of application per day, upper range | C77: 8 | D77: Hours per day | E77: USDA 1989a | F77: N/A
A78: Ground Spray Worker | B78: Acres treated per hour, central estimate | C78: 16 | D78: acres/hour | E78: USDA 1989a | F78: Acres treated per hour
A79: Ground Spray Worker | B79: Acres treated per hour, lower range | C79: 11 | D79: acres/hour | E79: USDA 1989a | F79: Acres treated per hour
A80: Ground Spray Worker | B80: Acres treated per hour, upper range | C80: 21 | D80: acres/hour | E80: USDA 1989a | F80: Acres treated per hour
A81: Honeybee | B81: Body weight | C81: 0.000116 | D81: kg | E81: Winston 1987 | F81: p. 54. Arithmetic average of range: 81 to 151 mg/bee.
A82: Honeybee | B82: Surface Area, Whole body | C82: 1.42 | D82: cm2 | E82: Humphery and Dykes 2008 | F82: Based on a bee with a body length of 1.44 cm.
A83: Mammals | B83: Food consumption, alpha parameter for allometric equation | C83: 0.235 | D83: BW(g),FC(g) | E83: U.S. EPA/ORD 1993 | F83: Eq. 3-7 ,p. 3-6, all mammals
A84: Mammals | B84: Food consumption, beta parameter for allometric equation | C84: 0.822 | D84: BW(g),FC(g) | E84: U.S. EPA/ORD 1993 | F84: Eq. 3-7 ,p. 3-6, all mammals
A85: 400 gram mammal (e.g., squirrel) | B85: Body weight | C85: 0.4 | D85: kg | E85: Default | F85: N/A
A86: 400 gram mammal (e.g., squirrel) | B86: Food consumption, alpha parameter for allometric equation | C86: 0.621 | D86: BW(g),FC(g) | E86: U.S. EPA/ORD 1993 | F86: Eq. 3-8, p. 3-6, equation for rodents
A87: 400 gram mammal (e.g., squirrel) | B87: Food consumption, beta parameter for allometric equation | C87: 0.564 | D87: BW(g),FC(g) | E87: U.S. EPA/ORD 1993 | F87: Eq. 3-8, p. 3-6, equation for rodents
A88: 400 gram mammal (e.g., squirrel) | B88: Kilocalories, alpha parameter for allometric equation | C88: 2.514 | D88: BW(g),KCal(kcal/day) | E88: U.S. EPA/ORD 1993 | F88: Equation 3-48, rodent
A89: 400 gram mammal (e.g., squirrel) | B89: Kilocalories, beta parameter for allometric equation | C89: 0.507 | D89: BW(g),KCal(kcal/day) | E89: U.S. EPA/ORD 1993 | F89: Equation 3-48, rodent
A90: 400 gram mammal (e.g., squirrel) | B90: Water consumption, alpha parameter for allometric equation | C90: 0.099 | D90: BW(kg),WC(L) | E90: U.S. EPA/ORD 1993 | F90: Eq. 3-17, p. 3-10, all mammals
A91: 400 gram mammal (e.g., squirrel) | B91: Water consumption, beta parameter for allometric equation | C91: 0.9 | D91: BW(kg),WC(L) | E91: U.S. EPA/ORD 1993 | F91: Eq. 3-17, p. 3-10, all mammals
A92: Carnivorous mammal | B92: Body weight | C92: 5 | D92: kg | E92: U.S. EPA/ORD 1993 | F92: p. 2-221. Central value for red fox with a range of 3 to 7 kg.
A93: Carnivorous mammal | B93: Kilocalories, alpha parameter for allometric equation | C93: 0.6167 | D93: BW(g),KCal(kcal/day) | E93: U.S. EPA/ORD 1993 | F93: Equation 3-47, non-herbivore
A94: Carnivorous mammal | B94: Kilocalories, beta parameter for allometric equation | C94: 0.862 | D94: BW(g),KCal(kcal/day) | E94: U.S. EPA/ORD 1993 | F94: Equation 3-47, non-herbivore
A95: Carnivorous mammal | B95: Water consumption, alpha parameter for allometric equation | C95: 0.099 | D95: BW(kg),WC(L) | E95: U.S. EPA/ORD 1993 | F95: Eq. 3-17, p. 3-10, all mammals
A96: Carnivorous mammal | B96: Water consumption, beta parameter for allometric equation | C96: 0.9 | D96: BW(kg), WC(L) | E96: U.S. EPA/ORD 1993 | F96: Eq. 3-17, p. 3-10, all mammals
A97: Large Carnivorous Mammal | B97: Body weight | C97: 70 | D97: kg | E97: Reid 2006 | F97: pp. 451-453. Black bear or small grizzly.
A98: Large Carnivorous Mammal | B98: Kilocalories, alpha parameter for allometric equation | C98: 0.6167 | D98: BW(g),KCal(kcal/day) | E98: U.S. EPA/ORD 1993 | F98: Equation 3-47, non-herbivore
A99: Large Carnivorous Mammal | B99: Kilocalories, beta parameter for allometric equation | C99: 0.862 | D99: BW(g),KCal(kcal/day) | E99: U.S. EPA/ORD 1993 | F99: Equation 3-47, non-herbivore
A100: Large Carnivorous Mammal | B100: Water consumption, alpha parameter for allometric equation | C100: 0.099 | D100: BW(kg),WC(L) | E100: U.S. EPA/ORD 1993 | F100: Eq. 3-17, p. 3-10, all mammals
A101: Large Carnivorous Mammal | B101: Water consumption, beta parameter for allometric equation | C101: 0.9 | D101: BW(kg), WC(L) | E101: U.S. EPA/ORD 1993 | F101: Eq. 3-17, p. 3-10, all mammals
A102: Herbivorous/Omnivorous mammal | B102: Food consumption, alpha parameter for allometric equation | C102: 0.577 | D102: BW(g),FC(g) | E102: U.S. EPA/ORD 1993 | F102: Eq. 3-9, p. 3-6, equation for herbivores
A103: Herbivorous/Omnivorous mammal | B103: Food consumption, beta parameter for allometric equation | C103: 0.727 | D103: BW(g),FC(g) | E103: U.S. EPA/ORD 1993 | F103: Eq. 3-9, p. 3-6, equation for herbivores
A104: Herbivorous/Omnivorous mammal | B104: Kilocalories, alpha parameter for allometric equation | C104: 1.518 | D104: BW(g),KCal(kcal/day) | E104: U.S. EPA/ORD 1993 | F104: Equation 3-46, herbivores
A105: Herbivorous/Omnivorous mammal | B105: Kilocalories, beta parameter for allometric equation | C105: 0.73 | D105: BW(g),KCal(kcal/day) | E105: U.S. EPA/ORD 1993 | F105: Equation 3-46, herbivores
A106: Large Mammal | B106: Body weight | C106: 70 | D106: kg | E106: Default | F106: N/A
A107: Large Mammal | B107: Kilocalories, alpha parameter for allometric equation | C107: 1.518 | D107: BW(g),KCal(kcal/day) | E107: U.S. EPA/ORD 1993 | F107: p. 3-6, Eq. 3-10, herbivores
A108: Large Mammal | B108: Kilocalories, beta parameter for allometric equation | C108: 0.73 | D108: BW(g),KCal(kcal/day) | E108: U.S. EPA/ORD 1993 | F108: p. 3-6, Eq. 3-10, herbivores
A109: Large Mammal | B109: Water consumption, alpha parameter for allometric equation | C109: 0.099 | D109: BW(kg),WC(L) | E109: U.S. EPA/ORD 1993 | F109: Eq. 3-17, p. 3-10, all mammals
A110: Large Mammal | B110: Water consumption, beta parameter for allometric equation | C110: 0.9 | D110: BW(kg), WC(L) | E110: U.S. EPA/ORD 1993 | F110: Eq. 3-17, p. 3-10, all mammals
A111: Rabbit | B111: Body weight | C111: 1.3 | D111: kg | E111: Default | F111: N/A
A112: Rabbit | B112: Surface Area, alpha parameter for allometric equation | C112: 0.11 | D112: BW(kg),SA(m2) | E112: U.S. EPA/ORD 1993 | F112: p. 3-14, Eq. 3-22, for all mammals
A113: Rabbit | B113: Surface Area, beta parameter for allometric equation | C113: 0.65 | D113: BW(kg),SA(m2) | E113: U.S. EPA/ORD 1993 | F113: p. 3-14, Eq. 3-22, for all mammals
A114: Rodent | B114: Food consumption, alpha parameter for allometric equation | C114: 0.621 | D114: BW(g),FC(g) | E114: U.S. EPA/ORD 1993 | F114: Eq. 3-8, p. 3-6, equation for rodents
A115: Rodent | B115: Food consumption, beta parameter for allometric equation | C115: 0.584 | D115: BW(g),FC(g) | E115: U.S. EPA/ORD 1993 | F115: Eq. 3-8,p. 3-6, equation for rodents
A116: Small Mammal | B116: Body weight | C116: 0.02 | D116: kg | E116: Default | F116: N/A
A117: Small Mammal | B117: Caloric content (wet weight) | C117: 1.7 | D117: kcal/g (wet weight) | E117: U.S. EPA/ORD 1993 | F117: Table 4-1, p. 4-13. Value for small mammals. Wet weight.
A118: Small Mammal | B118: Food consumption, alpha parameter for allometric equation | C118: 0.621 | D118: BW(g),FC(g) | E118: U.S. EPA/ORD 1993 | F118: Eq. 3-8, p. 3-6, equation for rodents
A119: Small Mammal | B119: Food consumption, beta parameter for allometric equation | C119: 0.564 | D119: BW(g),FC(g) | E119: U.S. EPA/ORD 1993 | F119: Eq. 3-8, p. 3-6, equation for rodents
A120: Small Mammal | B120: Kilocalories, alpha parameter for allometric equation | C120: 2.514 | D120: BW(g),KCal(kcal/day) | E120: U.S. EPA/ORD 1993 | F120: Equation 3-48, rodent
A121: Small Mammal | B121: Kilocalories, beta parameter for allometric equation | C121: 0.507 | D121: BW(g),KCal(kcal/day) | E121: U.S. EPA/ORD 1993 | F121: Equation 3-48, rodent
A122: Small Mammal | B122: Surface Area, alpha parameter for allometric equation | C122: 0.11 | D122: BW(kg),SA(m2) | E122: U.S. EPA/ORD 1993 | F122: p. 3-14, Eq. 3-22, for all mammals
A123: Small Mammal | B123: Surface Area, beta parameter for allometric equation | C123: 0.65 | D123: BW(kg),SA(m2) | E123: U.S. EPA/ORD 1993 | F123: p. 3-14, Eq. 3-22, for all mammals
A124: Small Mammal | B124: Water consumption, alpha parameter for allometric equation | C124: 0.099 | D124: BW(kg),WC(L) | E124: U.S. EPA/ORD 1993 | F124: Eq. 3-17, p. 3-10, all mammals
A125: Small Mammal | B125: Water consumption, beta parameter for allometric equation | C125: 0.9 | D125: BW(kg),WC(L) | E125: U.S. EPA/ORD 1993 | F125: Eq. 3-17, p. 3-10, all mammals
A126: Misc | B126: Liquid adhering to skin | C126: 0.008 | D126: mL/cm2 | E126: Mason and Johnson 1987 | F126: Weight of liquid adhering to surface of skin after a spill
A127: Misc | B127: Dislodgeable residue as proportion | C127: 0.1 | D127: none | E127: Harris and Solomon 1992 | F127: Estimate of dislodgeable residue as a proportion of application rate shortly after application based on 2,4-D.
A128: Standard Pond | B128: Depth | C128: 1 | D128: m | E128: Default | F128: Depth of pond
A129: Standard Pond | B129: Surface Area | C129: 1000 | D129: m^2 | E129: Default | F129: Surface Area
A130: Standard Pond | B130: Volume of Spill | C130: 200 | D130: gallons | E130: Default | F130: Volume of spill
A131: VegRR | B131: Broadleaf/forage plants and small insects, central estimate | C131: 45 | D131: mg chem/kg veg | E131: Fletcher et al. 1994 | F131: Broadleaf/forage plants and small insects
A132: VegRR | B132: Broadleaf/forage plants and small insects, lower range | C132: 15 | D132: mg chem/kg veg | E132: SERA 2007 | F132: Broadleaf/forage plants and small insects
A133: VegRR | B133: Broadleaf/forage plants and small insects, upper range | C133: 135 | D133: mg chem/kg veg | E133: Fletcher et al. 1994 | F133: Broadleaf/forage plants and small insects
A134: VegRR | B134: Fruits, pods, seeds, and large insects, central estimate | C134: 7 | D134: mg chem/kg veg | E134: Fletcher et al. 1994 | F134: Fruits, pods, seeds, and large insects
A135: VegRR | B135: Fruits, pods, seeds, and large insects, lower range | C135: 3.2 | D135: mg chem/kg veg | E135: SERA 2007 | F135: Fruits, pods, seeds, and large insects
A136: VegRR | B136: Fruits, pods, seeds, and large insects, upper range | C136: 15 | D136: mg chem/kg veg | E136: Fletcher et al. 1994 | F136: Fruits, pods, seeds, and large insects
A137: VegRR | B137: GranBLT, central estimate | C137: 1.8 | D137: mg chem/kg veg | E137: SERA 2005 | F137: Broadleaf forage plants and contaminated insects after granular application
A138: VegRR | B138: GranBLT, lower range | C138: 0.6 | D138: mg chem/kg veg | E138: SERA 2007 | F138: Broadleaf/forage plants after granular application
A139: VegRR | B139: GranBLT, upper range | C139: 5.4 | D139: mg chem/kg veg | E139: SERA 2005 | F139: Broadleaf forage plants and contaminated insects after granular application
A140: VegRR | B140: GranFRT, central estimate | C140: 0.28 | D140: mg chem/kg veg | E140: SERA 2005 | F140: Fruit after granular application
A141: VegRR | B141: GranFRT, lower range | C141: 0.13 | D141: mg chem/kg veg | E141: SERA 2007 | F141: Fruit after granular application
A142: VegRR | B142: GranFRT, upper range | C142: 0.6 | D142: mg chem/kg veg | E142: SERA 2005 | F142: Fruit after granular application
A143: VegRR | B143: GranSGT, central estimate | C143: 3.4 | D143: mg chem/kg veg | E143: SERA 2005 | F143: Short grass after granular application
A144: VegRR | B144: GranSGT, lower range | C144: 1.2 | D144: mg chem/kg veg | E144: SERA 2005 | F144: Short grass after granular application
A145: VegRR | B145: GranSGT, upper range | C145: 9.6 | D145: mg chem/kg veg | E145: SERA 2005 | F145: Short grass after granular application
A146: VegRR | B146: GranTGT, central estimate | C146: 1.44 | D146: mg chem/kg veg | E146: SERA 2005 | F146: Tall grass after granular application
A147: VegRR | B147: GranTGT, lower range | C147: 0.48 | D147: mg chem/kg veg | E147: SERA 2007 | F147: Tall grass after granular application
A148: VegRR | B148: GranTGT, upper range | C148: 4.4 | D148: mg chem/kg veg | E148: SERA 2005 | F148: Tall grass after granular application
A149: VegRR | B149: Short grass, central estimate | C149: 85 | D149: mg chem/kg veg | E149: Fletcher et al. 1994 | F149: Short grass
A150: VegRR | B150: Short grass, lower range | C150: 30 | D150: mg chem/kg veg | E150: Fletcher et al. 1994 | F150: Short grass
A151: VegRR | B151: Short grass, upper range | C151: 240 | D151: mg chem/kg veg | E151: Fletcher et al. 1994 | F151: Short grass
A152: VegRR | B152: Tall grass, central estimate | C152: 36 | D152: mg chem/kg veg | E152: Fletcher et al. 1994 | F152: Tall grass
A153: VegRR | B153: Tall grass, lower range | C153: 12 | D153: mg chem/kg veg | E153: SERA 2007 | F153: Tall grass
A154: VegRR | B154: Tall grass, upper range | C154: 110 | D154: mg chem/kg veg | E154: Fletcher et al. 1994 | F154: Tall grass
A155: VerRR | B155: GranSGT, lower range | C155: 1.2 | D155: mg chem/kg veg | E155: SERA 2007 | F155: Short grass after granular application
A156: VerRR | B156: Short grass, lower range | C156: 30 | D156: mg chem/kg veg | E156: SERA 2007 | F156: Short grass
A157: Worker | B157: Body weight | C157: 70 | D157: kg | E157: ICRP 1975 | F157: p. 13
A158: Worker | B158: Surface Area, Hands | C158: 840 | D158: cm2 | E158: U.S. EPA/ORD 1992 | F158: p. 8-11
A159: Worker | B159: Surface Area, Lower legs | C159: 2070 | D159: cm2 | E159: U.S. EPA/ORD 1992 | F159: p. 8-11

Sheet A03
A1: Consumption values used in worksheets
A2: Receptor | B2: Item | C2: Qualifier | D2: Modifier | E2: Value | F2: Units | G2: Reference | H2: Reference Note
A3: Adult Female | B3: Fish | C3: Amount | D3: central estimate | E3: 0.01 | F3: kg/day | G3: U.S. EPA/ORD 1996 | H3: p. 10-51, average of means from four studies rounded to one significant place.
A4: Adult Female | B4: Fish | C4: Amount | D4: upper range | E4: 0.158 | F4: kg/day | G4: Ruffle et al. 1994 | H4: N/A
A5: Adult Female | B5: Fruit | C5: Proportion of body weight | D5: central estimate | E5: 0.00168 | F5: kg fruit/kg bw/day | G5: U.S. EPA/ORD 1996 | H5: Table 9-3, p. 9-11, mean value.
A6: Adult Female | B6: Fruit | C6: Proportion of body weight | D6: lower range | E6: 0.00168 | F6: kg fruit/kg bw/day | G6: U.S. EPA/ORD 1996 | H6: Table 9-3, p. 9-11. The 5th percentile is given as zero. For these worksheets, the central estimate is used for the lower bound.
A7: Adult Female | B7: Fruit | C7: Proportion of body weight | D7: upper range | E7: 0.01244 | F7: kg fruit/kg bw/day | G7: U.S. EPA/ORD 1996 | H7: Table 9-3, p. 9-11, 95th percentile value.
A8: Adult Female | B8: Vegetation, home grown | C8: Proportion of body weight | D8: central estimate | E8: 0.00076 | F8: kg veg/kg bw/day | G8: U.S. EPA/ORD 1996 | H8: Table 12-15, p. 9-14, mean for individuals between 20 and 39 years old.
A9: Adult Female | B9: Vegetation, home grown | C9: Proportion of body weight | D9: lower range | E9: 8e-05 | F9: kg veg/kg bw/day | G9: U.S. EPA/ORD 1996 | H9: Table 12-15, p. 9-14, 5th percentile for individuals between 20 and 39 years old.
A10: Adult Female | B10: Vegetation, home grown | C10: Proportion of body weight | D10: upper range | E10: 0.00492 | F10: kg veg/kg bw/day | G10: U.S. EPA/ORD 1996 | H10: Table 12-15, p. 9-14, 95th percentile for individuals between 20 and 39 years old.
A11: Adult Female | B11: Vegetation | C11: Amount | D11: Extreme | E11: 0.454 | F11: kg food | G11: U.S. EPA/ORD 1996 | H11: 1 lb. The approximate mid range of the above typical and upper limits based on the 64 kg body weight.
A12: Adult Female | B12: Vegetation | C12: Proportion of body weight | D12: central estimate | E12: 0.0036 | F12: kg veg/kg bw/day | G12: U.S. EPA/ORD 1996 | H12: Table 9-12, p. 9-12, mean.
A13: Adult Female | B13: Vegetation | C13: Proportion of body weight | D13: lower range | E13: 0.00075 | F13: kg veg/kg bw/day | G13: U.S. EPA/ORD 1996 | H13: Table 9-12, p. 9-12, 5th percentile.
A14: Adult Female | B14: Vegetation | C14: Proportion of body weight | D14: upper range | E14: 0.01 | F14: kg veg/kg bw/day | G14: U.S. EPA/ORD 1996 | H14: Table 9-12, p. 9-12, 95th percentile.
A15: Adult Female | B15: Water | C15: Amount | D15: central estimate | E15: 2 | F15: L/day | G15: U.S. EPA/ORD 1996 | H15: p. 3-28, Table 3-30, midpoint of mean (1.4 L/day) and 90th percentile (2.4 L/day) rounded to one significant place.
A16: Adult Female | B16: Water | C16: Amount | D16: lower range | E16: 1.4 | F16: L/day | G16: U.S. EPA/ORD 1996 | H16: p. 3-28, Table 3-30, mean
A17: Adult Female | B17: Water | C17: Amount | D17: upper range | E17: 2.4 | F17: L/day | G17: U.S. EPA/ORD 1996 | H17: p. 3-28, Table 3-30, 90th percentile
A18: Adult Male | B18: Fish | C18: Amount | D18: central estimate | E18: 0.01 | F18: kg/day | G18: U.S. EPA/ORD 1996 | H18: p. 10-51, average of means from four studies rounded to one significant place.
A19: Adult Male | B19: Fish | C19: Amount | D19: upper range | E19: 0.158 | F19: kg/day | G19: Ruffle et al. 1994 | H19: N/A
A20: Adult Male | B20: Fruit | C20: Proportion of body weight | D20: central estimate | E20: 0.00168 | F20: unitless | G20: U.S. EPA/ORD 1996 | H20: Table 9-3, p. 9-11, mean value.
A21: Adult Male | B21: Fruit | C21: Proportion of body weight | D21: lower range | E21: 0.00168 | F21: unitless | G21: U.S. EPA/ORD 1996 | H21: Table 9-3, p. 9-11. The 5th percentile is given as zero. For these worksheets, the central estimate is used for the lower bound.
A22: Adult Male | B22: Fruit | C22: Proportion of body weight | D22: upper range | E22: 0.01244 | F22: unitless | G22: U.S. EPA/ORD 1996 | H22: Table 9-3, p. 9-11, 95th percentile value.
A23: Adult Male | B23: Vegetation, home grown | C23: Proportion of body weight | D23: central estimate | E23: 0.00076 | F23: unitless | G23: U.S. EPA/ORD 1996 | H23: Table 12-15, p. 9-14, mean for individuals between 20 and 39 years old.
A24: Adult Male | B24: Vegetation, home grown | C24: Proportion of body weight | D24: lower range | E24: 8e-05 | F24: unitless | G24: U.S. EPA/ORD 1996 | H24: Table 12-15, p. 9-14, 5th percentile for individuals between 20 and 39 years old.
A25: Adult Male | B25: Vegetation, home grown | C25: Proportion of body weight | D25: upper range | E25: 0.00492 | F25: unitless | G25: U.S. EPA/ORD 1996 | H25: Table 12-15, p. 9-14, 95th percentile for individuals between 20 and 39 years old.
A26: Adult Male | B26: Vegetation | C26: Amount | D26: Extreme | E26: 0.454 | F26: kg/day | G26: U.S. EPA/ORD 1996 | H26: 1 lb. The approximate mid range of the above typical and upper limits based on the 64 kg body weight.
A27: Adult Male | B27: Vegetation | C27: Proportion of body weight | D27: central estimate | E27: 0.0036 | F27: unitless | G27: U.S. EPA/ORD 1996 | H27: Table 9-12, p. 9-12, mean.
A28: Adult Male | B28: Vegetation | C28: Proportion of body weight | D28: lower range | E28: 0.00075 | F28: unitless | G28: U.S. EPA/ORD 1996 | H28: Table 9-12, p. 9-12, 5th percentile.
A29: Adult Male | B29: Vegetation | C29: Proportion of body weight | D29: upper range | E29: 0.01 | F29: unitless | G29: U.S. EPA/ORD 1996 | H29: Table 9-12, p. 9-12, 95th percentile.
A30: Adult Male | B30: Water | C30: Amount | D30: central estimate | E30: 2 | F30: L/day | G30: U.S. EPA/ORD 1996 | H30: p. 3-28, Table 3-30, midpoint of mean (1.4 L/day) and 90th percentile (2.4 L/day) rounded to one significant place.
A31: Adult Male | B31: Water | C31: Amount | D31: lower range | E31: 1.4 | F31: L/day | G31: U.S. EPA/ORD 1996 | H31: p. 3-28, Table 3-30, mean
A32: Adult Male | B32: Water | C32: Amount | D32: upper range | E32: 2.4 | F32: L/day | G32: U.S. EPA/ORD 1996 | H32: p. 3-28, Table 3-30, 90th percentile
A33: Subsistence Populations | B33: Fish | C33: Amount | D33: central estimate | E33: 0.081 | F33: kg/day | G33: U.S. EPA/ORD 1996 | H33: p. 10-51, median value of 94 individuals
A34: Subsistence Populations | B34: Fish | C34: Amount | D34: upper range | E34: 0.77 | F34: kg/day | G34: U.S. EPA/ORD 1996 | H34: p. 10-51, highest value of 94 individuals
A35: Fish-eating bird | B35: Fish | C35: Proportion of body weight | D35: central estimate | E35: 0.1 | F35: unitless | G35: U.S. EPA/ORD 1993 | H35: various species.
A36: Fish-eating bird | B36: Fish | C36: Proportion of body weight | D36: lower range | E36: 0.05 | F36: unitless | G36: U.S. EPA/ORD 1993 | H36: various species.
A37: Fish-eating bird | B37: Fish | C37: Proportion of body weight | D37: upper range | E37: 0.15 | F37: unitless | G37: U.S. EPA/ORD 1993 | H37: various species.
A38: Child | B38: Water | C38: Amount | D38: central estimate | E38: 1 | F38: L/day | G38: U.S. EPA/ORD 1996 | H38: p. 3-28, Table 3-30, midpoint of mean (0.61L/day) and 90th percentile (1.5 L/day) rounded to one significant place.
A39: Child | B39: Water | C39: Amount | D39: lower range | E39: 0.61 | F39: L/day | G39: U.S. EPA/ORD 1996 | H39: p. 3-28, Table 3-30, mean
A40: Child | B40: Water | C40: Amount | D40: upper range | E40: 1.5 | F40: L/day | G40: U.S. EPA/ORD 1996 | H40: p. 3-28, Table 3-30, 90th percentile
A41: Herbivorous Insect | B41: Broadleaf/Small Insects | C41: Proportion of body weight | D41: central estimate | E41: 1.3 | F41: kg food/kg bw/day | G41: Waldbauer 1968 | H41: N/A
A42: Herbivorous Insect | B42: Broadleaf/Small Insects | C42: Proportion of body weight | D42: lower range | E42: 0.6 | F42: kg food/kg bw/day | G42: Reichle et al. 1973 | H42: N/A
A43: Herbivorous Insect | B43: Broadleaf/Small Insects | C43: Proportion of body weight | D43: upper range | E43: 2.2 | F43: kg food/kg bw/day | G43: Waldbauer 1968 | H43: N/A
A44: Herbivorous Insect | B44: Fruit/Large Insects | C44: Proportion of body weight | D44: central estimate | E44: 1.3 | F44: kg food/kg bw/day | G44: Waldbauer 1968 | H44: N/A
A45: Herbivorous Insect | B45: Fruit/Large Insects | C45: Proportion of body weight | D45: lower range | E45: 0.6 | F45: kg food/kg bw/day | G45: Reichle et al. 1973 | H45: N/A
A46: Herbivorous Insect | B46: Fruit/Large Insects | C46: Proportion of body weight | D46: upper range | E46: 2.2 | F46: kg food/kg bw/day | G46: Waldbauer 1968 | H46: N/A
A47: Herbivorous Insect | B47: Short grass | C47: Proportion of body weight | D47: central estimate | E47: 1.3 | F47: kg food/kg bw/day | G47: Waldbauer 1968 | H47: N/A
A48: Herbivorous Insect | B48: Short grass | C48: Proportion of body weight | D48: lower range | E48: 0.6 | F48: kg food/kg bw/day | G48: Reichle et al. 1973 | H48: N/A
A49: Herbivorous Insect | B49: Short grass | C49: Proportion of body weight | D49: upper range | E49: 2.2 | F49: kg food/kg bw/day | G49: Waldbauer 1968 | H49: N/A
A50: Herbivorous Insect | B50: Tall Grass | C50: Proportion of body weight | D50: central estimate | E50: 1.3 | F50: kg food/kg bw/day | G50: Waldbauer 1968 | H50: N/A
A51: Herbivorous Insect | B51: Tall Grass | C51: Proportion of body weight | D51: lower range | E51: 0.6 | F51: kg food/kg bw/day | G51: Reichle et al. 1973 | H51: N/A
A52: Herbivorous Insect | B52: Tall Grass | C52: Proportion of body weight | D52: upper range | E52: 2.2 | F52: kg food/kg bw/day | G52: Waldbauer 1968 | H52: N/A

Sheet B01
A1: Chemical and Physical Properties for TCP-Triclop
A2: Property | B2: Receptor | C2: Value | D2: Units | E2: Document Reference
A3: Bioconcentration Factor (BCF), edible, acute | B3: N/A | C3: 0.06 | D3: L/kg fish | E3: Section 3.2.3.5.
A4: Bioconcentration Factor (BCF), edible, chronic | B4: N/A | C4: 0.06 | D4: L/kg fish | E4: Section 3.2.3.5.
A5: Bioconcentration Factor (BCF), whole fish, acute | B5: N/A | C5: 0.83 | D5: L/kg fish | E5: Section 3.2.3.5.
A6: Bioconcentration Factor (BCF), whole fish, chronic | B6: N/A | C6: 0.83 | D6: L/kg fish | E6: Section 3.2.3.5.
A7: Kow (Octanol-water partition coefficient) | B7: N/A | C7: 1000 | D7: unitless | E7: Table 2-1
A8: Molecular weight | B8: N/A | C8: 198.43 | D8: grams/mole | E8: Table 2-1
A9: Water Solubility | B9: N/A | C9: 100 | D9: mg/L | E9: Table 2-1
A10: First order dermal absorption rate (ka), central estimate | B10: N/A | C10: 0.012 | D10: per hour | E10: Worksheet B03b. Not used in RA
A11: First order dermal absorption rate (ka), lower range | B11: N/A | C11: 0.0041 | D11: per hour | E11: Worksheet B03b. Not used in RA
A12: First order dermal absorption rate (ka), upper range | B12: N/A | C12: 0.036 | D12: per hour | E12: Worksheet B03b. Not used in RA
A13: Dermal permeability (Kp), central estimate | B13: N/A | C13: 0.015 | D13: cm/hour | E13: Section 3.1.3.2.2
A14: Dermal permeability (Kp), lower range | B14: N/A | C14: 0.0094 | D14: cm/hour | E14: Section 3.1.3.2.2
A15: Dermal permeability (Kp), upper range | B15: N/A | C15: 0.024 | D15: cm/hour | E15: Section 3.1.3.2.2
A16: Halftime, central estimate | B16: Fruit | C16: 26.9 | D16: days | E16: Section 3.2.3.6. Not used in this workbook.
A17: Halftime, lower range | B17: Fruit | C17: 16.5 | D17: days | E17: Section 3.2.3.6. Not used in this workbook.
A18: Halftime, upper range | B18: Fruit | C18: 73.1 | D18: days | E18: Section 3.2.3.6. Not used in this workbook.
A19: Halftime, central estimate | B19: Vegetation | C19: 6.2 | D19: days | E19: Section 3.2.3.6. Not used in this workbook.
A20: Halftime, lower range | B20: Vegetation | C20: 2.6 | D20: days | E20: Section 3.2.3.6. Not used in this workbook.
A21: Halftime, upper range | B21: Vegetation | C21: 15 | D21: days | E21: Section 3.2.3.6. Not used in this workbook.

Sheet B02
A1: Toxicity values for TCP-Triclop
A2: Receptor | B2: Receptor | C2: Qualifier | D2: Endpoint | E2: Value | F2: Units | G2: Document Reference
A3: Human | B3: chronic | C3: N/A | D3: Reference Dose (RfD) | E3: 0.012 | F3: mg/kg bw/day | G3: Table 29
A4: Human | B4: acute | C4: N/A | D4: Reference Dose (RfD) | E4: 0.025 | F4: mg/kg bw/day | G4: Table 29
A5: Mammals | B5: acute | C5: N/A | D5: NOAEL | E5: 25 | F5: mg/kg bw/day | G5: Table 40
A6: Mammals | B6: chronic | C6: N/A | D6: NOAEL | E6: 12 | F6: mg/kg bw/day | G6: Table 40
A7: Fish | B7: acute | C7: sensitive species | D7: NOAEC* | E7: 0.18 | F7: mg/L | G7: Table 45
A8: Fish | B8: acute | C8: tolerant species | D8: NOAEC* | E8: 0.63 | F8: mg/L | G8: Table 45
A9: Aquatic invertebrate | B9: acute | C9: sensitive species | D9: NOAEC* | E9: 0.55 | F9: mg/L | G9: Table 45
A10: Aquatic invertebrate | B10: acute | C10: tolerant species | D10: NOAEC* | E10: 0.55 | F10: mg/L | G10: Table 45
A11: Fish | B11: chronic | C11: sensitive species | D11: NOAEC | E11: 0.18 | F11: mg/L | G11: Table 45
A12: Fish | B12: chronic | C12: tolerant species | D12: NOAEC | E12: 0.18 | F12: mg/L | G12: Table 45
A13: Aquatic invertebrate | B13: chronic | C13: sensitive species | D13: NOAEC | E13: 0.058 | F13: mg/L | G13: Table 45
A14: Aquatic invertebrate | B14: chronic | C14: tolerant species | D14: NOAEC | E14: 0.058 | F14: mg/L | G14: Table 45
A15: Birds | B15: acute | C15: N/A | D15: LOAEL | E15: 116 | F15: mg/kg bw | G15: Table 40
A16: Algae | B16: acute | C16: sensitive species | D16: NOAEC | E16: 0.36 | F16: mg/L | G16: Table 45
A17: Algae | B17: acute | C17: tolerant species | D17: NOAEC | E17: 0.65 | F17: mg/L | G17: Table 45

Sheet B03a
A1: Calculation of Zero-Order Dermal Permeability Rate (Kp) in cm/hour
A2: Short Title | B2: Calculation of Kp | E2: ChemDrmKp
A3: Parameter/Assumption | B3: Code / Range | C3: Equation/ Value | D3: Units | E3: Reference/Designation
A4: Molecular weight | B4: MW | C4: ='B01'!$C$8 -> 198.43 | D4: g/mole | E4: Table 2-1
A5: Ko/w | B5: Kow | C5: ='B01'!$C$7 -> 1000 | D5: unitless | E5: Table 2-1
A6: Vector a[] | B6: a[1] | C6: 1
B7: a[2] | C7: =C4 -> 198.43
B8: a[3] | C8: =LOG10(C5) -> 3
A9: Transpose of a[] (a') | B9: =$C$6 -> 1 | C9: =$C$7 -> 198.43 | D9: =$C$8 -> 3
A10: X'X Cross Product Matrix | B10: X'X
B11: 0.055931 | C11: -9.41546e-05 | D11: -0.0103443
B12: -9.41546e-05 | C12: 5.978e-07 | D12: -2.22508e-05
B13: -0.0103443 | C13: -2.22508e-05 | D13: 0.00740677
A14: a'X'X a | B14: a'X'X a | C14: =MMULT(B9:D9,MMULT(B11:D13, C6:C8)) -> 0.0202066331
A15: Coefficients for model
A16: Intercept | B16: K0 | C16: -2.72576
A17: Coeff for Log10(Kow) | B17: K1 | C17: 0.706648
A18: Coeff for MW | B18: K2 | C18: -0.006151
A19: Standard deviation of model | B19: s | C19: 0.727129
A20: Critical value at 0.025 with 87 d.f. | B20: t0.025 | C20: 1.96
A21: Log10 of Estimated dermal permeability rate (Kp) | B21: Log(Kp) = | C21: K1 MW × K2 Log10(Kow) + K0
B22: Central | C22: =($C$18*$C$4) + ($C$17*LOG10($C$5)) + $C$16 -> -1.82635893 | E22: Eq
B23: Lower 95% CI | C23: =$C$22 - ($C$20 * $C$19 * ($C$14^0.5)) -> -2.028947302 | E23: Eq
B24: Upper 95% CI | C24: =$C$22 + ($C$20 * $C$19 * ($C$14^0.5)) -> -1.623770558 | E24: Eq
A25: Estimated dermal permeability rate (Kp) | B25: Kp = | C25: 10Log(Kp)
B26: Central | C26: =10^C22 -> 0.01491561174 | D26: cm/hour | E26: Eq
B27: Lower 95% CI | C27: =10^C23 -> 0.00935519184 | E27: Eq
B28: Upper 95% CI | C28: =10^C24 -> 0.02378096328 | E28: Eq

Sheet B03b
A1: Calculation of First-Order Dermal Absorption Rate
A2: Short Title | B2: Calculation of ka | E2: ChemDrmKa
A3: Parameter/Assumption | B3: Code / Range | C3: Equation/ Value | D3: Units | E3: Reference/Designation
A4: Molecular weight | B4: MW | C4: ='B01'!$C$8 -> 198.43 | D4: g/mole | E4: Table 2-1
A5: Ko/w | B5: Kow | C5: ='B01'!$C$7 -> 1000 | D5: unitless | E5: Table 2-1
A6: Vector a[] | B6: a[1] | C6: 1
B7: a[2] | C7: =C4 -> 198.43
B8: a[3] | C8: =LOG10(C5) -> 3
A9: Transpose of a[] (a') | B9: =$C$6 -> 1 | C9: =$C$7 -> 198.43 | D9: =$C$8 -> 3
A10: X'X Cross Product Matrix | B10: X'X
B11: 0.307537 | C11: -0.00103089 | D11: 0.00822769
B12: -0.00103089 | C12: 4.377e-06 | D12: -9.44359e-05
B13: 0.00822769 | C13: -9.44359e-05 | D13: 0.0085286
A14: a'X'X a | B14: a'X'X a | C14: =MMULT(B9:D9,MMULT(B11:D13, C6:C8)) -> 0.08445007365
A15: Coefficients for model
A16: Intercept | B16: K0 | C16: -1.49615
A17: Coeff for Log10(Kow) | B17: K1 | C17: 0.233255
A18: Coeff for MW | B18: K2 | C18: -0.005657
A19: Standard deviation of model | B19: s | C19: 0.787218
A20: Critical value at 0.025 with 26 d.f. | B20: t0.025 | C20: 2.056
A21: Log10 of Estimated first-order absorption rate | B21: Log(ka) = | C21: K1 MW × K2 Log10(Kow) + K0
B22: Central | C22: =($C$18*$C$4) + ($C$17*LOG10($C$5)) + $C$16 -> -1.91890351 | E22: Eq
B23: Lower 95% CI | C23: =$C$22 - ($C$20 * $C$19 * ($C$14^0.5)) -> -2.389250255 | E23: Eq
B24: Upper 95% CI | C24: =$C$22 + ($C$20 * $C$19 * ($C$14^0.5)) -> -1.448556765 | E24: Eq
A25: Estimated first-order absorption rate | B25: ka = | C25: 10Log(ka)
B26: Central | C26: =10^C22 -> 0.01205303701 | D26: hour-1 | E26: Eq
B27: Lower 95% CI | C27: =10^C23 -> 0.004080841672 | E27: Eq
B28: Upper 95% CI | C28: =10^C24 -> 0.03559944559 | E28: Eq

Sheet B04a
A1: Estimates of Water Contamination Rates -- i.e., the concentration in ambient water per pound applied per acre | E1: EECRtV6
A2: Parameter/Assumption | B2: Code / Range | C2: Equation/ Value | D2: Units | E2: EECRtV6
A3: Expected Concentrations of Triclopyr In Surface Water
A4: Short-term peak concentration of triclopyr surface water | B4: Peak
B5: Central | C5: 0.1838461861 | D5: mg/L
B6: Lower | C6: 0.09192309304
B7: Upper | C7: 0.3676923722
A8: Longer-term average concentrations of triclopyr in surface water | B8: Average
B9: Central | C9: 0.005894088466 | D9: mg/L
B10: Lower | C10: 0.0007367610582
B11: Upper | C11: 0.02357634989
A12: Adjustment factors for metabolite formulation based on monitoring data | B12: Factor
B13: Central | C13: 235 | E13: See Section 3.2.3.4.1.2 of Risk Assessment
B14: Upper | C14: 586
B15: Lower | C15: 137
A16: Expected Concentrations of TCP In Surface Water
A17: Short-term peak concentrations | B17: Peak
B18: Central | C18: =C5/C13 -> 0.0007823241961 | D18: mg/L | E18: Eq
B19: Lower | C19: =C6/C14 -> 0.0001568653465 | E19: Eq
B20: Upper | C20: 0.002683885928 | E20: Eq
A21: Longer-term average concentrations | B21: Average
B22: Central | C22: =C9/C13 -> 2.508122751e-05 | D22: mg/L | E22: Eq
B23: Lower | C23: =C10/C14 -> 1.25727143e-06 | E23: Eq
B24: Upper | C24: 0.0001720901452 | E24: Eq

Sheet B04b
A1: Pond: Concentration of pesticide (liquid formulation) in pond water after an accidental spill
A2: Short Title | B2: Pond Spill | E2: PondSpillLiqV6
A3: Receptor | B3: Pond
A4: Duration | B4: Acute
A5: Parameter/Assumption | B5: Code / Range | C5: Equation/ Value | D5: Units | E5: Reference/Designation
A6: Concentration of parent compound in pond water immediately after spill | B6: ConcWat
B7: Central | C7: 1.8168 | D7: mg/L
B8: Lower | C8: 0.2271
B9: Upper | C9: 18.168
A10: Adjustment factors for metabolite formulation based on monitoring data | B10: Factor
B11: Central | C11: 235 | E11: See Section 3.2.3.4.1.2 of Risk Assessment
B12: Upper | C12: 586
B13: Lower | C13: 137
A14: Concentration of metabolite in pond water | B14: ConcWat | C14: ConcWat ÷ Factor
B15: Central | C15: =C7/C11 -> 0.00773106383 | D15: mg/L | E15: Eq.
B16: Lower | C16: =C8/C12 -> 0.0003875426621 | E16: Eq.
B17: Upper | C17: 0.1326131387 | E17: Eq.

Sheet D05
A1: Acute exposure of Child after an accidental spill of the pesticide into a pond
A2: Short Title | B2: Water consumption, accidental spill | E2: WatSpillAmntV6
A3: Receptor | B3: Child
A4: Duration | B4: Acute
A5: Parameter/Assumption | B5: Code / Range | C5: Equation/ Value | D5: Units | E5: Reference/Designation
A6: Concentration in pond water | B6: ConcWat
B7: Central | C7: =B04b!Water_C -> 0.00773106383 | D7: mg/L | E7: ='B04b'!Water_C
B8: Lower | C8: =B04b!Water_L -> 0.0003875426621 | E8: ='B04b'!Water_L
B9: Upper | C9: =B04b!Water_U -> 0.1326131387 | E9: ='B04b'!Water_U
A10: Amount of water consumed in one day | B10: Amnt
B11: Central | C11: ='A03'!$E$38 -> 1 | D11: liters/day | E11: U.S. EPA/ORD 1996
B12: Lower | C12: ='A03'!$E$39 -> 0.61 | E12: U.S. EPA/ORD 1996
B13: Upper | C13: ='A03'!$E$40 -> 1.5 | E13: U.S. EPA/ORD 1996
A14: Body weight | B14: BW | C14: ='A02'!$C$59 -> 13.3 | D14: kg | E14: U.S. EPA/ORD 1996
A15: Dose | B15: Dose | C15: ConcWat × Amnt ÷ BW
B16: Central | C16: =C7*C11/C$14 -> 0.0005812829947 | D16: mg/kg | E16: Eq
B17: Lower | C17: =C8*C12/C$14 -> 1.777451307e-05 | D17: mg/kg | E17: Eq
B18: Upper | C18: =C9*C13/C$14 -> 0.01495636902 | D18: mg/kg | E18: Eq

Sheet D06
A1: Consumption of contaminated water, Child, acute exposure
A2: Short Title | B2: Water consumption, ambient | E2: WatAmbAmntV6
A3: Receptor | B3: Child
A4: Duration | B4: acute
A5: Parameter/Assumption | B5: Code / Range | C5: Equation/ Value | D5: Units | E5: Reference/Designation
A6: Concentration in water | B6: ConcWat | C6: ApR × WCR ×TEF
B7: Central | C7: =B04a!Acute_C -> 0.0007823241961 | D7: mg/L | E7: ='B04a'!Acute_C
B8: Lower | C8: =B04a!Acute_L -> 0.0001568653465 | E8: ='B04a'!Acute_L
B9: Upper | C9: =B04a!Acute_U -> 0.002683885928 | E9: ='B04a'!Acute_U
A10: Toxic Equivalency Factor for formulation: (See risk assessment if this has a value other than 1.) | B10: TEF
B11: Central | C11: ='A01'!C$35 -> 1 | D11: unitless | E11: Worksheet A01
B12: Lower | C12: ='A01'!C$36 -> 1 | E12: Worksheet A01
B13: Upper | C13: ='A01'!C$37 -> 1 | E13: Worksheet A01
A14: Amount of water consumed in one day | B14: Amnt
B15: Central | C15: ='A03'!$E$38 -> 1 | D15: L/day | E15: U.S. EPA/ORD 1996
B16: Lower | C16: ='A03'!$E$39 -> 0.61 | E16: U.S. EPA/ORD 1996
B17: Upper | C17: ='A03'!$E$40 -> 1.5 | E17: U.S. EPA/ORD 1996
A18: Body weight | B18: BW | C18: ='A02'!$C$59 -> 13.3 | D18: kg | E18: U.S. EPA/ORD 1996
A19: Dose | B19: Dose | C19: ConcWat × Amnt ×TEF ÷ BW
B20: Central | C20: =C7*C15/C$18 -> 5.882136813e-05 | D20: mg/kg | E20: Eq
B21: Lower | C21: =C8*C16/C$18 -> 7.194576042e-06 | D21: mg/kg | E21: Eq
B22: Upper | C22: =C9*C17/C$18 -> 0.0003026939017 | D22: mg/kg | E22: Eq

Sheet D07
A1: Consumption of contaminated water, Child, chronic exposure
A2: Short Title | B2: Water consumption, ambient | E2: WatAmbAmntV6
A3: Receptor | B3: Child
A4: Duration | B4: chronic
A5: Parameter/Assumption | B5: Code / Range | C5: Equation/ Value | D5: Units | E5: Reference/Designation
A6: Concentration in water | B6: ConcWat | C6: ApR × WCR ×TEF
B7: Central | C7: =B04a!Chronic_C -> 2.508122751e-05 | D7: mg/L | E7: ='B04a'!Chronic_C
B8: Lower | C8: =B04a!Chronic_L -> 1.25727143e-06 | E8: ='B04a'!Chronic_L
B9: Upper | C9: =B04a!Chronic_U -> 0.0001720901452 | E9: ='B04a'!Chronic_U
A10: Toxic Equivalency Factor for formulation: (See risk assessment if this has a value other than 1.) | B10: TEF
B11: Central | C11: ='A01'!C$35 -> 1 | D11: unitless | E11: Worksheet A01
B12: Lower | C12: ='A01'!C$36 -> 1 | E12: Worksheet A01
B13: Upper | C13: ='A01'!C$37 -> 1 | E13: Worksheet A01
A14: Amount of water consumed in one day | B14: Amnt
B15: Central | C15: ='A03'!$E$38 -> 1 | D15: L/day | E15: U.S. EPA/ORD 1996
B16: Lower | C16: ='A03'!$E$39 -> 0.61 | E16: U.S. EPA/ORD 1996
B17: Upper | C17: ='A03'!$E$40 -> 1.5 | E17: U.S. EPA/ORD 1996
A18: Body weight | B18: BW | C18: ='A02'!$C$59 -> 13.3 | D18: kg | E18: U.S. EPA/ORD 1996
A19: Dose | B19: Dose | C19: ConcWat × Amnt ×TEF ÷ BW
B20: Central | C20: =C7*C15/C$18 -> 1.88580658e-06 | D20: mg/kg | E20: Eq
B21: Lower | C21: =C8*C16/C$18 -> 5.766432876e-08 | D21: mg/kg | E21: Eq
B22: Upper | C22: =C9*C17/C$18 -> 1.940866299e-05 | D22: mg/kg | E22: Eq

Sheet D08a
A1: Acute scenario for the consumption of contaminated fish by Adult Male after an accidental spill of the pesticide into a pond
A2: Short Title | B2: Fish consumption, accidental spill | E2: FishAmntSpill
A3: Receptor | B3: Adult Male
A4: Duration | B4: Acute
A5: Parameter/Assumption | B5: Code / Range | C5: Equation/ Value | D5: Units | E5: Reference/Designation
A6: Surface Area of Pond | B6: SA | C6: ='A01'!C$23 -> 1000 | D6: m2 | E6: Worksheet A01
A7: Depth of Pond | B7: Depth | C7: ='A01'!C$24 -> 1 | D7: meter | E7: Worksheet A01
A8: Volume of Pond | B8: VPM | C8: =C6*C7 -> 1000 | D8: m3 | E8: Eq
B9: VPL | C9: =1000*C8 -> 1000000 | D9: liters | E9: Eq
A10: Concentration in field solution | B10: Conc
B11: Central | C11: ='A01'!FldConc_C -> 9.6 | D11: mg/mL | E11: Worksheet A01
B12: Lower | C12: ='A01'!FldConc_L -> 6 | E12: Worksheet A01
B13: Upper | C13: ='A01'!FldConc_U -> 48 | E13: Worksheet A01
A14: Volume of Spill (gallons) | B14: VSGal
B15: Central | C15: ='A01'!C$43 -> 100 | D15: gallons | E15: Worksheet A01
B16: Lower | C16: ='A01'!C$44 -> 20 | E16: Worksheet A01
B17: Upper | C17: ='A01'!C$45 -> 200 | E17: Worksheet A01
A18: Conversion factor for gallons to liters | B18: Conv | C18: 3.785 | D18: liters/gal
A19: Volume of Spill (liters) | B19: VSLit | C19: VSGal x Conv
B20: Central | C20: =C15*C$18 -> 378.5 | D20: liters | E20: Eq
B21: Lower | C21: =C16*C$18 -> 75.7 | D21: liters | E21: Eq
B22: Upper | C22: =C17*C$18 -> 757 | D22: liters | E22: Eq
A23: Concentration in pond water | B23: ConcWat | C23: Conc × 1000 mL/L × VSLit ÷ VPL
B24: Central | C24: =C11*1000*C20/C$9 -> 3.6336 | D24: mg/L | E24: Eq
B25: Lower | C25: =C12*1000*C21/C$9 -> 0.4542 | E25: Eq
B26: Upper | C26: =C13*1000*C22/C$9 -> 36.336 | E26: Eq
A27: Bioconcentration factor | B27: BCF
B28: Central | C28: ='B01'!$C$3 -> 0.06 | D28: L/kg | E28: Section 3.2.3.5.
B29: Lower | C29: ='B01'!$C$3 -> 0.06 | E29: Section 3.2.3.5.
B30: Upper | C30: ='B01'!$C$3 -> 0.06 | E30: Section 3.2.3.5.
A31: Concentration in fish | B31: ConcFish | C31: ConcWat × BCF
B32: Central | C32: =C24*C28 -> 0.218016 | D32: mg/kg | E32: Eq
B33: Lower | C33: =C25*C29 -> 0.027252 | E33: Eq
B34: Upper | C34: =C26*C30 -> 2.18016 | E34: Eq
A35: Amount of fish consumed | B35: Amnt
B36: Central | C36: ='A03'!$E$19 -> 0.158 | D36: kg/day | E36: Ruffle et al. 1994
B37: Lower | C37: ='A03'!$E$19 -> 0.158 | E37: Ruffle et al. 1994
B38: Upper | C38: ='A03'!$E$19 -> 0.158 | E38: Ruffle et al. 1994
A39: Toxic Equivalency Factor for formulation: (See risk assessment if this has a value other than 1.) | B39: TEF
B40: Central | C40: ='A01'!C$35 -> 1 | D40: Unitless | E40: Worksheet A01
B41: Lower | C41: ='A01'!C$36 -> 1 | E41: Worksheet A01
B42: Upper | C42: ='A01'!C$37 -> 1 | E42: Worksheet A01
A43: Body weight | B43: BW | C43: ='A02'!$C$7 -> 70 | D43: kg | E43: ICRP 1975
A44: Dose | B44: Dose | C44: ConcFish × Amnt × TEF ÷ BW
B45: Central | C45: =C32*C36*C40/C$43 -> 0.0004920932571 | D45: mg/kg | E45: Eq
B46: Lower | C46: =C33*C37*C41/C$43 -> 6.151165714e-05 | D46: mg/kg | E46: Eq
B47: Upper | C47: =C34*C38*C42/C$43 -> 0.004920932571 | D47: mg/kg | E47: Eq

Sheet D08b
A1: Acute scenario for the consumption of contaminated fish by Subsistence Populations after an accidental spill of the pesticide into a pond
A2: Short Title | B2: Fish consumption, accidental spill | E2: FishAmntSpill
A3: Receptor | B3: Subsistence Populations
A4: Duration | B4: Acute
A5: Parameter/Assumption | B5: Code / Range | C5: Equation/ Value | D5: Units | E5: Reference/Designation
A6: Surface Area of Pond | B6: SA | C6: ='A01'!C$23 -> 1000 | D6: m2 | E6: Worksheet A01
A7: Depth of Pond | B7: Depth | C7: ='A01'!C$24 -> 1 | D7: meter | E7: Worksheet A01
A8: Volume of Pond | B8: VPM | C8: =C6*C7 -> 1000 | D8: m3 | E8: Eq
B9: VPL | C9: =1000*C8 -> 1000000 | D9: liters | E9: Eq
A10: Concentration in field solution | B10: Conc
B11: Central | C11: ='A01'!FldConc_C -> 9.6 | D11: mg/mL | E11: Worksheet A01
B12: Lower | C12: ='A01'!FldConc_L -> 6 | E12: Worksheet A01
B13: Upper | C13: ='A01'!FldConc_U -> 48 | E13: Worksheet A01
A14: Volume of Spill (gallons) | B14: VSGal
B15: Central | C15: ='A01'!C$43 -> 100 | D15: gallons | E15: Worksheet A01
B16: Lower | C16: ='A01'!C$44 -> 20 | E16: Worksheet A01
B17: Upper | C17: ='A01'!C$45 -> 200 | E17: Worksheet A01
A18: Conversion factor for gallons to liters | B18: Conv | C18: 3.785 | D18: liters/gal
A19: Volume of Spill (liters) | B19: VSLit | C19: VSGal x Conv
B20: Central | C20: =C15*C$18 -> 378.5 | D20: liters | E20: Eq
B21: Lower | C21: =C16*C$18 -> 75.7 | D21: liters | E21: Eq
B22: Upper | C22: =C17*C$18 -> 757 | D22: liters | E22: Eq
A23: Concentration in pond water | B23: ConcWat | C23: Conc × 1000 mL/L × VSLit ÷ VPL
B24: Central | C24: =C11*1000*C20/C$9 -> 3.6336 | D24: mg/L | E24: Eq
B25: Lower | C25: =C12*1000*C21/C$9 -> 0.4542 | E25: Eq
B26: Upper | C26: =C13*1000*C22/C$9 -> 36.336 | E26: Eq
A27: Bioconcentration factor | B27: BCF
B28: Central | C28: ='B01'!$C$3 -> 0.06 | D28: L/kg | E28: Section 3.2.3.5.
B29: Lower | C29: ='B01'!$C$3 -> 0.06 | E29: Section 3.2.3.5.
B30: Upper | C30: ='B01'!$C$3 -> 0.06 | E30: Section 3.2.3.5.
A31: Concentration in fish | B31: ConcFish | C31: ConcWat × BCF
B32: Central | C32: =C24*C28 -> 0.218016 | D32: mg/kg | E32: Eq
B33: Lower | C33: =C25*C29 -> 0.027252 | E33: Eq
B34: Upper | C34: =C26*C30 -> 2.18016 | E34: Eq
A35: Amount of fish consumed | B35: Amnt
B36: Central | C36: ='A03'!$E$34 -> 0.77 | D36: kg/day | E36: U.S. EPA/ORD 1996
B37: Lower | C37: ='A03'!$E$34 -> 0.77 | E37: U.S. EPA/ORD 1996
B38: Upper | C38: ='A03'!$E$34 -> 0.77 | E38: U.S. EPA/ORD 1996
A39: Toxic Equivalency Factor for formulation: (See risk assessment if this has a value other than 1.) | B39: TEF
B40: Central | C40: ='A01'!C$35 -> 1 | D40: Unitless | E40: Worksheet A01
B41: Lower | C41: ='A01'!C$36 -> 1 | E41: Worksheet A01
B42: Upper | C42: ='A01'!C$37 -> 1 | E42: Worksheet A01
A43: Body weight | B43: BW | C43: ='A02'!$C$8 -> 70 | D43: kg | E43: ICRP 1975
A44: Dose | B44: Dose | C44: ConcFish × Amnt × TEF ÷ BW
B45: Central | C45: =C32*C36*C40/C$43 -> 0.002398176 | D45: mg/kg | E45: Eq
B46: Lower | C46: =C33*C37*C41/C$43 -> 0.000299772 | D46: mg/kg | E46: Eq
B47: Upper | C47: =C34*C38*C42/C$43 -> 0.02398176 | D47: mg/kg | E47: Eq

Sheet D09a
A1: Consumption of contaminated fish, Adult Male, chronic exposure
A2: Short Title | B2: Fish consumption, chronic | E2: FishAmntAmb
A3: Receptor | B3: Adult Male
A4: Duration | B4: chronic
A5: Parameter/Assumption | B5: Code / Range | C5: Equation/ Value | D5: Units | E5: Reference/Designation
A6: Concentration in water | B6: ConcWat | C6: ApR × WCR
B7: Central | C7: =B04a!C22 -> 2.508122751e-05 | D7: mg/L | E7: Eq
B8: Lower | C8: =B04a!C23 -> 1.25727143e-06 | E8: Eq
B9: Upper | C9: =B04a!C24 -> 0.0001720901452 | E9: Eq
A10: Bioconcentration factor | B10: BCF
B11: Central | C11: ='B01'!$C$4 -> 0.06 | D11: L/kg | E11: Section 3.2.3.5.
B12: Lower | C12: ='B01'!$C$4 -> 0.06 | E12: Section 3.2.3.5.
B13: Upper | C13: ='B01'!$C$4 -> 0.06 | E13: Section 3.2.3.5.
A14: Concentration in fish | B14: ConcFish | C14: ConcWat × BCF
B15: Central | C15: =C7*C11 -> 1.504873651e-06 | D15: mg/kg | E15: Eq
B16: Lower | C16: =C8*C12 -> 7.543628582e-08 | E16: Eq
B17: Upper | C17: =C9*C13 -> 1.032540871e-05 | E17: Eq
A18: Amount of fish consumed | B18: Amnt
B19: Central | C19: ='A03'!$E$18 -> 0.01 | D19: kg/day | E19: U.S. EPA/ORD 1996
B20: Lower | C20: ='A03'!$E$18 -> 0.01 | E20: U.S. EPA/ORD 1996
B21: Upper | C21: ='A03'!$E$18 -> 0.01 | E21: U.S. EPA/ORD 1996
A22: Toxic Equivalency Factor for formulation: (See risk assessment if this has a value other than 1.) | B22: TEF
B23: Central | C23: ='A01'!C$35 -> 1 | D23: Unitless | E23: Worksheet A01
B24: Lower | C24: ='A01'!C$36 -> 1 | E24: Worksheet A01
B25: Upper | C25: ='A01'!C$37 -> 1 | E25: Worksheet A01
A26: Body weight | B26: BW | C26: ='A02'!$C$7 -> 70 | D26: kg | E26: ICRP 1975
A27: Dose | B27: Dose | C27: ConcFish× Amnt x TEF ÷ BW
B28: Central | C28: =C15*C19*C23/C$26 -> 2.149819501e-10 | D28: mg/kg | E28: Eq
B29: Lower | C29: =C16*C20*C24/C$26 -> 1.077661226e-11 | D29: mg/kg | E29: Eq
B30: Upper | C30: =C17*C21*C25/C$26 -> 1.475058387e-09 | D30: mg/kg | E30: Eq

Sheet D09b
A1: Consumption of contaminated fish, Subsistence Populations, chronic exposure
A2: Short Title | B2: Fish consumption, chronic | E2: FishAmntAmb
A3: Receptor | B3: Subsistence Populations
A4: Duration | B4: chronic
A5: Parameter/Assumption | B5: Code / Range | C5: Equation/ Value | D5: Units | E5: Reference/Designation
A6: Concentration in water | B6: ConcWat | C6: ApR × WCR
B7: Central | C7: =B04a!C22 -> 2.508122751e-05 | D7: mg/L | E7: Eq
B8: Lower | C8: =B04a!C23 -> 1.25727143e-06 | E8: Eq
B9: Upper | C9: =B04a!C24 -> 0.0001720901452 | E9: Eq
A10: Bioconcentration factor | B10: BCF
B11: Central | C11: ='B01'!$C$4 -> 0.06 | D11: L/kg | E11: Section 3.2.3.5.
B12: Lower | C12: ='B01'!$C$4 -> 0.06 | E12: Section 3.2.3.5.
B13: Upper | C13: ='B01'!$C$4 -> 0.06 | E13: Section 3.2.3.5.
A14: Concentration in fish | B14: ConcFish | C14: ConcWat × BCF
B15: Central | C15: =C7*C11 -> 1.504873651e-06 | D15: mg/kg | E15: Eq
B16: Lower | C16: =C8*C12 -> 7.543628582e-08 | E16: Eq
B17: Upper | C17: =C9*C13 -> 1.032540871e-05 | E17: Eq
A18: Amount of fish consumed | B18: Amnt
B19: Central | C19: ='A03'!$E$33 -> 0.081 | D19: kg/day | E19: U.S. EPA/ORD 1996
B20: Lower | C20: ='A03'!$E$33 -> 0.081 | E20: U.S. EPA/ORD 1996
B21: Upper | C21: ='A03'!$E$33 -> 0.081 | E21: U.S. EPA/ORD 1996
A22: Toxic Equivalency Factor for formulation: (See risk assessment if this has a value other than 1.) | B22: TEF
B23: Central | C23: ='A01'!C$35 -> 1 | D23: Unitless | E23: Worksheet A01
B24: Lower | C24: ='A01'!C$36 -> 1 | E24: Worksheet A01
B25: Upper | C25: ='A01'!C$37 -> 1 | E25: Worksheet A01
A26: Body weight | B26: BW | C26: ='A02'!$C$8 -> 70 | D26: kg | E26: ICRP 1975
A27: Dose | B27: Dose | C27: ConcFish× Amnt x TEF ÷ BW
B28: Central | C28: =C15*C19*C23/C$26 -> 1.741353796e-09 | D28: mg/kg | E28: Eq
B29: Lower | C29: =C16*C20*C24/C$26 -> 8.729055931e-11 | D29: mg/kg | E29: Eq
B30: Upper | C30: =C17*C21*C25/C$26 -> 1.194797294e-08 | D30: mg/kg | E30: Eq

Sheet D09c
A1: Consumption of contaminated fish, Adult Male, acute exposure
A2: Short Title | B2: Fish consumption, acute | E2: FishAmntAmb
A3: Receptor | B3: Adult Male
A4: Duration | B4: acute
A5: Parameter/Assumption | B5: Code / Range | C5: Equation/ Value | D5: Units | E5: Reference/Designation
A6: Concentration in water | B6: ConcWat
B7: Central | C7: =B04a!C18 -> 0.0007823241961 | D7: mg/L | E7: B04a, acute
B8: Lower | C8: =B04a!C19 -> 0.0001568653465 | E8: B04a, acute
B9: Upper | C9: =B04a!C20 -> 0.002683885928 | E9: B04a, acute
A10: Bioconcentration factor | B10: BCF
B11: Central | C11: ='B01'!$C$3 -> 0.06 | D11: L/kg | E11: Section 3.2.3.5.
B12: Lower | C12: ='B01'!$C$3 -> 0.06 | E12: Section 3.2.3.5.
B13: Upper | C13: ='B01'!$C$3 -> 0.06 | E13: Section 3.2.3.5.
A14: Concentration in fish | B14: ConcFish | C14: ConcWat × BCF
B15: Central | C15: =C7*C11 -> 4.693945177e-05 | D15: mg/kg | E15: Eq
B16: Lower | C16: =C8*C12 -> 9.411920789e-06 | E16: Eq
B17: Upper | C17: =C9*C13 -> 0.0001610331557 | E17: Eq
A18: Amount of fish consumed | B18: Amnt
B19: Central | C19: ='A03'!$E$19 -> 0.158 | D19: kg/day | E19: Ruffle et al. 1994
B20: Lower | C20: ='A03'!$E$19 -> 0.158 | E20: Ruffle et al. 1994
B21: Upper | C21: ='A03'!$E$19 -> 0.158 | E21: Ruffle et al. 1994
A22: Toxic Equivalency Factor for formulation: (See risk assessment if this has a value other than 1.) | B22: TEF
B23: Central | C23: ='A01'!C$35 -> 1 | D23: Unitless | E23: Worksheet A01
B24: Lower | C24: ='A01'!C$36 -> 1 | E24: Worksheet A01
B25: Upper | C25: ='A01'!C$37 -> 1 | E25: Worksheet A01
A26: Body weight | B26: BW | C26: ='A02'!$C$7 -> 70 | D26: kg | E26: ICRP 1975
A27: Dose | B27: Dose | C27: ConcFish× Amnt x TEF ÷ BW
B28: Central | C28: =C15*C19*C23/C$26 -> 1.059490483e-07 | D28: mg/kg | E28: Eq
B29: Lower | C29: =C16*C20*C24/C$26 -> 2.124404978e-08 | D29: mg/kg | E29: Eq
B30: Upper | C30: =C17*C21*C25/C$26 -> 3.634748371e-07 | D30: mg/kg | E30: Eq

Sheet D09d
A1: Consumption of contaminated fish, Subsistence Populations, acute exposure
A2: Short Title | B2: Fish consumption, acute | E2: FishAmntAmb
A3: Receptor | B3: Subsistence Populations
A4: Duration | B4: acute
A5: Parameter/Assumption | B5: Code / Range | C5: Equation/ Value | D5: Units | E5: Reference/Designation
A6: Concentration in water | B6: ConcWat | C6: ApR × WCR
B7: Central | C7: =B04a!C18 -> 0.0007823241961 | D7: mg/L | E7: B04a, acute
B8: Lower | C8: =B04a!C19 -> 0.0001568653465 | E8: B04a, acute
B9: Upper | C9: =B04a!C20 -> 0.002683885928 | E9: B04a, acute
A10: Bioconcentration factor | B10: BCF
B11: Central | C11: ='B01'!$C$3 -> 0.06 | D11: L/kg | E11: Section 3.2.3.5.
B12: Lower | C12: ='B01'!$C$3 -> 0.06 | E12: Section 3.2.3.5.
B13: Upper | C13: ='B01'!$C$3 -> 0.06 | E13: Section 3.2.3.5.
A14: Concentration in fish | B14: ConcFish | C14: ConcWat × BCF
B15: Central | C15: =C7*C11 -> 4.693945177e-05 | D15: mg/kg | E15: Eq
B16: Lower | C16: =C8*C12 -> 9.411920789e-06 | E16: Eq
B17: Upper | C17: =C9*C13 -> 0.0001610331557 | E17: Eq
A18: Amount of fish consumed | B18: Amnt
B19: Central | C19: ='A03'!$E$34 -> 0.77 | D19: kg/day | E19: U.S. EPA/ORD 1996
B20: Lower | C20: ='A03'!$E$34 -> 0.77 | E20: U.S. EPA/ORD 1996
B21: Upper | C21: ='A03'!$E$34 -> 0.77 | E21: U.S. EPA/ORD 1996
A22: Toxic Equivalency Factor for formulation: (See risk assessment if this has a value other than 1.) | B22: TEF
B23: Central | C23: ='A01'!C$35 -> 1 | D23: Unitless | E23: Worksheet A01
B24: Lower | C24: ='A01'!C$36 -> 1 | E24: Worksheet A01
B25: Upper | C25: ='A01'!C$37 -> 1 | E25: Worksheet A01
A26: Body weight | B26: BW | C26: ='A02'!$C$8 -> 70 | D26: kg | E26: ICRP 1975
A27: Dose | B27: Dose | C27: ConcFish× Amnt x TEF ÷ BW
B28: Central | C28: =C15*C19*C23/C$26 -> 5.163339694e-07 | D28: mg/kg | E28: Eq
B29: Lower | C29: =C16*C20*C24/C$26 -> 1.035311287e-07 | D29: mg/kg | E29: Eq
B30: Upper | C30: =C17*C21*C25/C$26 -> 1.771364713e-06 | D30: mg/kg | E30: Eq

Sheet D11
A1: Swimming Exposure Assessment Using Zero-Order Absorption, Adult Female, Surface Area, Whole body, for 60 minute(s)
A2: Short Title | B2: Swimming | E2: DrmZrSwm
A3: Receptor | B3: Adult Female
A4: Duration | B4: Acute
A5: Surface Contaminated | B5: Surface Area, Whole body
A6: Parameter/Assumption | B6: Code / Range | C6: Equation/ Value | D6: Units | E6: Reference/Designation
A7: Surface Area | B7: SA | C7: ='A02'!$C$6 -> 16900 | D7: cm2 | E7: U.S. EPA/ORD 1997
A8: Duration of Exposure | B8: T_min | C8: ='A01'!C$29 -> 60 | D8: minutes | E8: Worksheet A01
B9: T_hr | C9: =C8/60 -> 1 | D9: hours | E9: Eq
A10: Body weight | B10: BW | C10: ='A02'!$C$3 -> 64 | D10: kg | E10: U.S. EPA/ORD 1985
A11: Concentration in water in mg/mL | B11: ConcWat | C11: ApR × WCR / 1000
B12: Central | C12: =B04a!C18 -> 0.0007823241961 | D12: mg/mL | E12: B04a, acute
B13: Lower | C13: =B04a!C19 -> 0.0001568653465 | E13: B04a, acute
B14: Upper | C14: =B04a!C20 -> 0.002683885928 | E14: B04a, acute
A15: Toxic Equivalency Factor for formulation: (See risk assessment if this has a value other than 1.) | B15: TEF
B16: Central | C16: ='A01'!C$35 -> 1 | D16: Unitless | E16: Worksheet A01
B17: Lower | C17: ='A01'!C$36 -> 1 | E17: Worksheet A01
B18: Upper | C18: ='A01'!C$37 -> 1 | E18: Worksheet A01
A19: Dermal permeability | B19: Kp
B20: Central | C20: ='B01'!$C$13 -> 0.015 | D20: cm/hour | E20: Section 3.2.2.2
B21: Lower | C21: ='B01'!$C$14 -> 0.0094 | E21: Section 3.2.2.2
B22: Upper | C22: ='B01'!$C$15 -> 0.024 | E22: Section 3.2.2.2
A23: Absorbed Dose | B23: Dose | C23: Kp × Conc × T_hr × SA × TEF ÷ BW
B24: Central | C24: =C20*C12*C$9*C$7*C16/C$10 -> 0.003098737245 | D24: mg/kg
B25: Lower | C25: =C21*C13*C$9*C$7*C17/C$10 -> 0.0003893692022 | D25: mg/kg
B26: Upper | C26: =C22*C14*C$9*C$7*C18/C$10 -> 0.01700912707 | D26: mg/kg

Sheet E03
A1: Worksheet E03: Summary of Exposure Assessments for the General Public
A2: Application Rate: | B2: ='A01'!ApRt_C -> 2 | C2: lb a.e./acre | F2: E03aV6
A3: Scenario | B3: Receptor | C3: mg/kg/day or mg/kg/event | F3: Detail Worksheet
C4: Central | D4: Lower | E4: Upper
A5: Accidental Acute Exposures (dose in mg/kg/event)
A6: Direct Spray of Child, whole body | B6: Child | C6: No exposure assessment. | I6: Spray: Child
A7: Direct Spray of Woman, feet and lower legs | B7: Adult Female | C7: No exposure assessment. | I7: Spray: Woman
A8: Water consumption (spill) | B8: Child | C8: ='D05'!Dose_C -> 0.0005812829947 | D8: ='D05'!Dose_L -> 1.777451307e-05 | E8: ='D05'!Dose_U -> 0.01495636902 | F8: D05 | I8: Water: Child
A9: Fish consumption (spill) | B9: Adult Male | C9: =D08a!Dose_C -> 0.0004920932571 | D9: =D08a!Dose_L -> 6.151165714e-05 | E9: =D08a!Dose_U -> 0.004920932571 | F9: D08a | I9: Fish: Man
A10: Fish consumption (spill) | B10: Subsistence Populations | C10: =D08b!Dose_C -> 0.002398176 | D10: =D08b!Dose_L -> 0.000299772 | E10: =D08b!Dose_U -> 0.02398176 | F10: D08b | I10: Fish: Subsist
A11: Non-Accidental Acute Exposures (dose in mg/kg/event)
A12: Vegetation Contact, shorts and T-shirt | B12: Adult Female | C12: No exposure assessment. | I12: Contact: Female
A13: Contaminated Fruit | B13: Adult Female | C13: No exposure assessment. | I13: Fruit: Female
A14: Contaminated Vegetation | B14: Adult Female | C14: No exposure assessment. | I14: Veg: Female
A15: Swimming, one hour | B15: Adult Female | C15: ='D11'!Dose_C -> 0.003098737245 | D15: ='D11'!Dose_L -> 0.0003893692022 | E15: ='D11'!Dose_U -> 0.01700912707 | F15: D11 | I15: Swim: Female
A16: Water consumption | B16: Child | C16: ='D06'!Dose_C -> 5.882136813e-05 | D16: ='D06'!Dose_L -> 7.194576042e-06 | E16: ='D06'!Dose_U -> 0.0003026939017 | F16: D06 | I16: Water: Child
A17: Fish consumption | B17: Adult Male | C17: =D09c!Dose_C -> 1.059490483e-07 | D17: =D09c!Dose_L -> 2.124404978e-08 | E17: =D09c!Dose_U -> 3.634748371e-07 | F17: D09c | I17: Fish: Male
A18: Fish consumption | B18: Subsistence Populations | C18: =D09d!Dose_C -> 5.163339694e-07 | D18: =D09d!Dose_L -> 1.035311287e-07 | E18: =D09d!Dose_U -> 1.771364713e-06 | F18: D09d | I18: Fish: Subsist
A19: Chronic/Longer Term Exposures (dose in mg/kg/day)
A20: Contaminated Fruit | B20: Adult Female | C20: No exposure assessment. | I20: Fruit: Female
A21: Contaminated Vegetation | B21: Adult Female | C21: No exposure assessment. | I21: Veg: Female
A22: Water consumption | B22: Adult Male | C22: ='D07'!Dose_C -> 1.88580658e-06 | D22: ='D07'!Dose_L -> 5.766432876e-08 | E22: ='D07'!Dose_U -> 1.940866299e-05 | F22: D07 | I22: Water: Male
A23: Fish consumption | B23: Adult Male | C23: =D09a!Dose_C -> 2.149819501e-10 | D23: =D09a!Dose_L -> 1.077661226e-11 | E23: =D09a!Dose_U -> 1.475058387e-09 | F23: D09a | I23: Fish: Male
A24: Fish consumption | B24: Subsistence Populations | C24: =D09b!Dose_C -> 1.741353796e-09 | D24: =D09b!Dose_L -> 8.729055931e-11 | E24: =D09b!Dose_U -> 1.194797294e-08 | F24: D09b | I24: Fish: Subsist

Sheet E04
A1: Worksheet E03: Summary of Hazard Quotients (Toxicity) for the General Public
A2: Application Rate: | B2: ='A01'!ApRt_C -> 2 | C2: lb a.e./acre | F2: E03aV6
A3: Scenario | B3: Receptor | C3: Hazard Quotients | F3: Toxicity Value
C4: Central | D4: Lower | E4: Upper
A5: Accidental Acute Exposures (dose in mg/kg/event)
A6: Direct Spray of Child, whole body | B6: Child | C6: No exposure assessment. | I6: Spray: Child
A7: Direct Spray of Woman, feet and lower legs | B7: Adult Female | C7: No exposure assessment. | I7: Spray: Woman
A8: Water consumption (spill) | B8: Child | C8: ='D05'!$C$16/$F$8 -> 0.02325131979 | D8: ='D05'!$C$17/$F$8 -> 0.000710980523 | E8: ='D05'!$C$18/$F$8 -> 0.598254761 | F8: ='B02'!$E$4 -> 0.025 | I8: Water: Child
A9: Fish consumption (spill) | B9: Adult Male | C9: =D08a!$C$45/$F$9 -> 0.01968373029 | D9: =D08a!$C$46/$F$9 -> 0.002460466286 | E9: =D08a!$C$47/$F$9 -> 0.1968373029 | F9: ='B02'!$E$4 -> 0.025 | I9: Fish: Man
A10: Fish consumption (spill) | B10: Subsistence Populations | C10: =D08b!$C$45/$F$10 -> 0.09592704 | D10: =D08b!$C$46/$F$10 -> 0.01199088 | E10: =D08b!$C$47/$F$10 -> 0.9592704 | F10: ='B02'!$E$4 -> 0.025 | I10: Fish: Subsist
A11: Non-Accidental Acute Exposures (dose in mg/kg/event)
A12: Vegetation Contact, shorts and T-shirt | B12: Adult Female | C12: No exposure assessment. | I12: Contact: Female
A13: Contaminated Fruit | B13: Adult Female | C13: No exposure assessment. | I13: Fruit: Female
A14: Contaminated Vegetation | B14: Adult Female | C14: No exposure assessment. | I14: Veg: Female
A15: Swimming, one hour | B15: Adult Female | C15: ='D11'!$C$24/$F$15 -> 0.1239494898 | D15: ='D11'!$C$25/$F$15 -> 0.01557476809 | E15: ='D11'!$C$26/$F$15 -> 0.6803650828 | F15: ='B02'!$E$4 -> 0.025 | I15: Swim: Female
A16: Water consumption | B16: Child | C16: ='D06'!$C$20/$F$16 -> 0.002352854725 | D16: ='D06'!$C$21/$F$16 -> 0.0002877830417 | E16: ='D06'!$C$22/$F$16 -> 0.01210775607 | F16: ='B02'!$E$4 -> 0.025 | I16: Water: Child
A17: Fish consumption | B17: Adult Male | C17: =D09c!$C$28/$F$17 -> 4.237961931e-06 | D17: =D09c!$C$29/$F$17 -> 8.497619913e-07 | E17: =D09c!$C$30/$F$17 -> 1.453899349e-05 | F17: ='B02'!$E$4 -> 0.025 | I17: Fish: Male
A18: Fish consumption | B18: Subsistence Populations | C18: =D09d!$C$28/$F$18 -> 2.065335878e-05 | D18: =D09d!$C$29/$F$18 -> 4.141245147e-06 | E18: =D09d!$C$30/$F$18 -> 7.085458851e-05 | F18: ='B02'!$E$4 -> 0.025 | I18: Fish: Subsist
A19: Chronic/Longer Term Exposures (dose in mg/kg/day)
A20: Contaminated Fruit | B20: Adult Female | C20: No exposure assessment. | I20: Fruit: Female
A21: Contaminated Vegetation | B21: Adult Female | C21: No exposure assessment. | I21: Veg: Female
A22: Water consumption | B22: Adult Male | C22: ='D07'!$C$20/$F$22 -> 0.0001571505483 | D22: ='D07'!$C$21/$F$22 -> 4.80536073e-06 | E22: ='D07'!$C$22/$F$22 -> 0.001617388582 | F22: ='B02'!$E$3 -> 0.012 | I22: Water: Male
A23: Fish consumption | B23: Adult Male | C23: =D09a!$C$28/$F$23 -> 1.791516251e-08 | D23: =D09a!$C$29/$F$23 -> 8.980510217e-10 | E23: =D09a!$C$30/$F$23 -> 1.229215323e-07 | F23: ='B02'!$E$3 -> 0.012 | I23: Fish: Male
A24: Fish consumption | B24: Subsistence Populations | C24: =D09b!$C$28/$F$24 -> 1.451128163e-07 | D24: =D09b!$C$29/$F$24 -> 7.274213276e-09 | E24: =D09b!$C$30/$F$24 -> 9.956644113e-07 | F24: ='B02'!$E$3 -> 0.012 | I24: Fish: Subsist

Sheet F02a
A1: Acute exposure of Small Mammal after an accidental spill of the pesticide into a pond
A2: Short Title | B2: Water consumption, accidental spill | E2: WatSpillAlloV6
A3: Receptor | B3: Small Mammal
A4: Duration | B4: Acute
A5: Parameter/Assumption | B5: Code / Range | C5: Equation/ Value | D5: Units | E5: Reference/Designation
A6: Concentration in pond water | B6: ConcWat
B7: Central | C7: =B04b!Water_C -> 0.00773106383 | D7: mg/L | E7: ='B04b'!Water_C
B8: Lower | C8: =B04b!Water_L -> 0.0003875426621 | E8: ='B04b'!Water_L
B9: Upper | C9: =B04b!Water_U -> 0.1326131387 | E9: ='B04b'!Water_U
A10: Receptor
A11: Body weight | B11: BW | C11: ='A02'!$C$116 -> 0.02 | D11: kg | E11: Default
A12: Allometric coefficients forwater consumption per day in liters and BW in kilograms
B13: alpha | C13: ='A02'!$C$124 -> 0.099 | E13: U.S. EPA/ORD 1993
B14: beta | C14: ='A02'!$C$125 -> 0.9 | E14: U.S. EPA/ORD 1993
A15: Amount of water consumed per day | C15: Amnt = alpha BW beta
B16: Amnt | C16: =C13*(C11^C14) -> 0.002927940121 | D16: liters | E16: Eq
A17: Toxic Equivalency Factor for formulation: (See risk assessment if this has a value other than 1.) | B17: TEF
B18: Central | C18: ='A01'!C$35 -> 1 | D18: unitless | E18: Worksheet A01
B19: Lower | C19: ='A01'!C$36 -> 1 | E19: Worksheet A01
B20: Upper | C20: ='A01'!C$37 -> 1 | E20: Worksheet A01
A21: Absorbed Dose | B21: Dose | C21: ConcWat × Amnt ÷ BW
B22: Central | C22: =C7*C$16/C$11 -> 0.001131804598 | D22: mg/kg | E22: Eq
B23: Lower | C23: =C8*C$16/C$11 -> 5.673508544e-05 | D23: mg/kg | E23: Eq
B24: Upper | C24: =C9*C$16/C$11 -> 0.01941416646 | D24: mg/kg | E24: Eq

Sheet F02b
A1: Acute exposure of 400 gram mammal (e.g., squirrel) after an accidental spill of the pesticide into a pond
A2: Short Title | B2: Water consumption, accidental spill | E2: WatSpillAlloV6
A3: Receptor | B3: 400 gram mammal (e.g., squirrel)
A4: Duration | B4: Acute
A5: Parameter/Assumption | B5: Code / Range | C5: Equation/ Value | D5: Units | E5: Reference/Designation
A6: Concentration in pond water | B6: ConcWat
B7: Central | C7: =B04b!Water_C -> 0.00773106383 | D7: mg/L | E7: ='B04b'!Water_C
B8: Lower | C8: =B04b!Water_L -> 0.0003875426621 | E8: ='B04b'!Water_L
B9: Upper | C9: =B04b!Water_U -> 0.1326131387 | E9: ='B04b'!Water_U
A10: Receptor
A11: Body weight | B11: BW | C11: ='A02'!$C$85 -> 0.4 | D11: kg | E11: Default
A12: Allometric coefficients forwater consumption per day in liters and BW in kilograms
B13: alpha | C13: ='A02'!$C$90 -> 0.099 | E13: U.S. EPA/ORD 1993
B14: beta | C14: ='A02'!$C$91 -> 0.9 | E14: U.S. EPA/ORD 1993
A15: Amount of water consumed per day | C15: Amnt = alpha BW beta
B16: Amnt | C16: =C13*(C11^C14) -> 0.04339994576 | D16: liters | E16: Eq
A17: Toxic Equivalency Factor for formulation: (See risk assessment if this has a value other than 1.) | B17: TEF
B18: Central | C18: ='A01'!C$35 -> 1 | D18: unitless | E18: Worksheet A01
B19: Lower | C19: ='A01'!C$36 -> 1 | E19: Worksheet A01
B20: Upper | C20: ='A01'!C$37 -> 1 | E20: Worksheet A01
A21: Absorbed Dose | B21: Dose | C21: ConcWat × Amnt ÷ BW
B22: Central | C22: =C7*C$16/C$11 -> 0.0008388193773 | D22: mg/kg | E22: Eq
B23: Lower | C23: =C8*C$16/C$11 -> 4.204832629e-05 | D23: mg/kg | E23: Eq
B24: Upper | C24: =C9*C$16/C$11 -> 0.01438850757 | D24: mg/kg | E24: Eq

Sheet F02c
A1: Acute exposure of Carnivorous mammal after an accidental spill of the pesticide into a pond
A2: Short Title | B2: Water consumption, accidental spill | E2: WatSpillAlloV6
A3: Receptor | B3: Carnivorous mammal
A4: Duration | B4: Acute
A5: Parameter/Assumption | B5: Code / Range | C5: Equation/ Value | D5: Units | E5: Reference/Designation
A6: Concentration in pond water | B6: ConcWat
B7: Central | C7: =B04b!Water_C -> 0.00773106383 | D7: mg/L | E7: ='B04b'!Water_C
B8: Lower | C8: =B04b!Water_L -> 0.0003875426621 | E8: ='B04b'!Water_L
B9: Upper | C9: =B04b!Water_U -> 0.1326131387 | E9: ='B04b'!Water_U
A10: Receptor
A11: Body weight | B11: BW | C11: ='A02'!$C$92 -> 5 | D11: kg | E11: U.S. EPA/ORD 1993
A12: Allometric coefficients forwater consumption per day in liters and BW in kilograms
B13: alpha | C13: ='A02'!$C$95 -> 0.099 | E13: U.S. EPA/ORD 1993
B14: beta | C14: ='A02'!$C$96 -> 0.9 | E14: U.S. EPA/ORD 1993
A15: Amount of water consumed per day | C15: Amnt = alpha BW beta
B16: Amnt | C16: =C13*(C11^C14) -> 0.4214132616 | D16: liters | E16: Eq
A17: Toxic Equivalency Factor for formulation: (See risk assessment if this has a value other than 1.) | B17: TEF
B18: Central | C18: ='A01'!C$35 -> 1 | D18: unitless | E18: Worksheet A01
B19: Lower | C19: ='A01'!C$36 -> 1 | E19: Worksheet A01
B20: Upper | C20: ='A01'!C$37 -> 1 | E20: Worksheet A01
A21: Absorbed Dose | B21: Dose | C21: ConcWat × Amnt ÷ BW
B22: Central | C22: =C7*C$16/C$11 -> 0.0006515945649 | D22: mg/kg | E22: Eq
B23: Lower | C23: =C8*C$16/C$11 -> 3.266312345e-05 | D23: mg/kg | E23: Eq
B24: Upper | C24: =C9*C$16/C$11 -> 0.01117698706 | D24: mg/kg | E24: Eq

Sheet F02d
A1: Acute exposure of Large Mammal after an accidental spill of the pesticide into a pond
A2: Short Title | B2: Water consumption, accidental spill | E2: WatSpillAlloV6
A3: Receptor | B3: Large Mammal
A4: Duration | B4: Acute
A5: Parameter/Assumption | B5: Code / Range | C5: Equation/ Value | D5: Units | E5: Reference/Designation
A6: Concentration in pond water | B6: ConcWat
B7: Central | C7: =B04b!Water_C -> 0.00773106383 | D7: mg/L | E7: ='B04b'!Water_C
B8: Lower | C8: =B04b!Water_L -> 0.0003875426621 | E8: ='B04b'!Water_L
B9: Upper | C9: =B04b!Water_U -> 0.1326131387 | E9: ='B04b'!Water_U
A10: Receptor
A11: Body weight | B11: BW | C11: ='A02'!$C$106 -> 70 | D11: kg | E11: Default
A12: Allometric coefficients forwater consumption per day in liters and BW in kilograms
B13: alpha | C13: ='A02'!$C$109 -> 0.099 | E13: U.S. EPA/ORD 1993
B14: beta | C14: ='A02'!$C$110 -> 0.9 | E14: U.S. EPA/ORD 1993
A15: Amount of water consumed per day | C15: Amnt = alpha BW beta
B16: Amnt | C16: =C13*(C11^C14) -> 4.531306412 | D16: liters | E16: Eq
A17: Toxic Equivalency Factor for formulation: (See risk assessment if this has a value other than 1.) | B17: TEF
B18: Central | C18: ='A01'!C$35 -> 1 | D18: unitless | E18: Worksheet A01
B19: Lower | C19: ='A01'!C$36 -> 1 | E19: Worksheet A01
B20: Upper | C20: ='A01'!C$37 -> 1 | E20: Worksheet A01
A21: Absorbed Dose | B21: Dose | C21: ConcWat × Amnt ÷ BW
B22: Central | C22: =C7*C$16/C$11 -> 0.0005004545586 | D22: mg/kg | E22: Eq
B23: Lower | C23: =C8*C$16/C$11 -> 2.508677928e-05 | D23: mg/kg | E23: Eq
B24: Upper | C24: =C9*C$16/C$11 -> 0.008584439508 | D24: mg/kg | E24: Eq

Sheet F02e
A1: Acute exposure of Small Bird after an accidental spill of the pesticide into a pond
A2: Short Title | B2: Water consumption, accidental spill | E2: WatSpillAlloV6
A3: Receptor | B3: Small Bird
A4: Duration | B4: Acute
A5: Parameter/Assumption | B5: Code / Range | C5: Equation/ Value | D5: Units | E5: Reference/Designation
A6: Concentration in pond water | B6: ConcWat
B7: Central | C7: =B04b!Water_C -> 0.00773106383 | D7: mg/L | E7: ='B04b'!Water_C
B8: Lower | C8: =B04b!Water_L -> 0.0003875426621 | E8: ='B04b'!Water_L
B9: Upper | C9: =B04b!Water_U -> 0.1326131387 | E9: ='B04b'!Water_U
A10: Receptor
A11: Body weight | B11: BW | C11: ='A02'!$C$54 -> 0.01 | D11: kg | E11: Default
A12: Allometric coefficients forwater consumption per day in liters and BW in kilograms
B13: alpha | C13: ='A02'!$C$57 -> 0.059 | E13: U.S. EPA/ORD 1993
B14: beta | C14: ='A02'!$C$58 -> 0.67 | E14: U.S. EPA/ORD 1993
A15: Amount of water consumed per day | C15: Amnt = alpha BW beta
B16: Amnt | C16: =C13*(C11^C14) -> 0.002696820319 | D16: liters | E16: Eq
A17: Toxic Equivalency Factor for formulation: (See risk assessment if this has a value other than 1.) | B17: TEF
B18: Central | C18: ='A01'!C$35 -> 1 | D18: unitless | E18: Worksheet A01
B19: Lower | C19: ='A01'!C$36 -> 1 | E19: Worksheet A01
B20: Upper | C20: ='A01'!C$37 -> 1 | E20: Worksheet A01
A21: Absorbed Dose | B21: Dose | C21: ConcWat × Amnt ÷ BW
B22: Central | C22: =C7*C$16/C$11 -> 0.002084929002 | D22: mg/kg | E22: Eq
B23: Lower | C23: =C8*C$16/C$11 -> 0.0001045132926 | D23: mg/kg | E23: Eq
B24: Upper | C24: =C9*C$16/C$11 -> 0.03576338069 | D24: mg/kg | E24: Eq

Sheet F02f
A1: Acute exposure of Large Bird after an accidental spill of the pesticide into a pond
A2: Short Title | B2: Water consumption, accidental spill | E2: WatSpillAlloV6
A3: Receptor | B3: Large Bird
A4: Duration | B4: Acute
A5: Parameter/Assumption | B5: Code / Range | C5: Equation/ Value | D5: Units | E5: Reference/Designation
A6: Concentration in pond water | B6: ConcWat
B7: Central | C7: =B04b!Water_C -> 0.00773106383 | D7: mg/L | E7: ='B04b'!Water_C
B8: Lower | C8: =B04b!Water_L -> 0.0003875426621 | E8: ='B04b'!Water_L
B9: Upper | C9: =B04b!Water_U -> 0.1326131387 | E9: ='B04b'!Water_U
A10: Receptor
A11: Body weight | B11: BW | C11: ='A02'!$C$38 -> 4 | D11: kg | E11: Default
A12: Allometric coefficients forwater consumption per day in liters and BW in kilograms
B13: alpha | C13: ='A02'!$C$41 -> 0.059 | E13: U.S. EPA/ORD 1993
B14: beta | C14: ='A02'!$C$42 -> 0.67 | E14: U.S. EPA/ORD 1993
A15: Amount of water consumed per day | C15: Amnt = alpha BW beta
B16: Amnt | C16: =C13*(C11^C14) -> 0.1493592781 | D16: liters | E16: Eq
A17: Toxic Equivalency Factor for formulation: (See risk assessment if this has a value other than 1.) | B17: TEF
B18: Central | C18: ='A01'!C$35 -> 1 | D18: unitless | E18: Worksheet A01
B19: Lower | C19: ='A01'!C$36 -> 1 | E19: Worksheet A01
B20: Upper | C20: ='A01'!C$37 -> 1 | E20: Worksheet A01
A21: Absorbed Dose | B21: Dose | C21: ConcWat × Amnt ÷ BW
B22: Central | C22: =C7*C$16/C$11 -> 0.0002886765281 | D22: mg/kg | E22: Eq
B23: Lower | C23: =C8*C$16/C$11 -> 1.447077306e-05 | D23: mg/kg | E23: Eq
B24: Upper | C24: =C9*C$16/C$11 -> 0.004951750665 | D24: mg/kg | E24: Eq

Sheet F03a
A1: Acute scenario for the consumption of contaminated Fish by Large Carnivorous Mammal after an accidental spill of the pesticide into a pond
A2: Short Title | B2: Fish consumption, accidental spill | E2: FishKcalPondSpillAcV6
A3: Predator | B3: Large Carnivorous Mammal
A4: Food Item (Prey) | B4: Fish
A5: Duration | B5: Acute
A6: Parameter/Assumption | B6: Code / Range | C6: Equation/ Value | D6: Units | E6: Reference/Designation
A7: Pond
A8: Concentration in pond water | B8: ConcWat
B9: Central | C9: =B04b!Water_C -> 0.00773106383 | D9: mg/L | E9: ='B04b'!Water_C
B10: Lower | C10: =B04b!Water_L -> 0.0003875426621 | E10: ='B04b'!Water_L
B11: Upper | C11: =B04b!Water_U -> 0.1326131387 | E11: ='B04b'!Water_U
A12: Fish
A13: Bioconcentration factor | B13: BCF
B14: Central | C14: ='B01'!$C$5 -> 0.83 | D14: L/kg | E14: Section 3.2.3.5.
B15: Lower | C15: ='B01'!$C$5 -> 0.83 | E15: Section 3.2.3.5.
B16: Upper | C16: ='B01'!$C$5 -> 0.83 | E16: Section 3.2.3.5.
A17: Concentration in fish | B17: ConcFish | C17: ConcWat × BCF
B18: Central | C18: =C9*C14 -> 0.006416782979 | D18: mg/kg | E18: Eq
B19: Lower | C19: =C10*C15 -> 0.0003216604096 | E19: Eq
B20: Upper | C20: =C11*C16 -> 0.1100689051 | E20: Eq
A21: Receptor
A22: Body weight | B22: BW | C22: ='A02'!$C$97 -> 70 | D22: kg | E22: Reid 2006
A23: Allometric coefficients for caloric requirement per day in kilocalories and BW in grams
B24: alpha | C24: ='A02'!$C$98 -> 0.6167 | E24: U.S. EPA/ORD 1993
B25: beta | C25: ='A02'!$C$99 -> 0.862 | E25: U.S. EPA/ORD 1993
A26: Caloric requirement per day | B26: KR | C26: =C24*(C22*1000)^C25 -> 9258.666883 | D26: kcal/day | E26: Eq
A27: Caloric content of commodity (dry weight) | B27: KCD | C27: 4.47 | D27: kcal/gdw [Note 1] | E27: WkMk Documentation
A28: Food consumed per day (dry weight) | B28: AmntDry | C28: = KR ÷ KCD
C29: =C26/C27 -> 2071.29013 | D29: gdry/day | E29: Eq
A30: Water content of vegetation as a proportion | B30: PropWater | C30: 0.7 | D30: gwater/gfood | E30: WkMk Documentation
A31: Dry weight content of vegetation as a proportion | B31: PropDry | C31: = 1-PropWater
C32: =1-C30 -> 0.3 | D32: gdry/gfood | E32: Eq
A33: Amount of fish consumed per day, wet weight | B33: AmntFish | C33: = (AmntDry ÷ PropDry) ÷ (1000g/kg)
B34: Central | C34: =(C29/C32)/1000 -> 6.904300435 | D34: kgfood/day | E34: Eq
B35: Lower | C35: =C34*0.3 -> 2.07129013 | D35: Note 1 | E35: Eq
B36: Upper | C36: =C34*1.7 -> 11.73731074 | D36: Note 1 | E36: Eq
A37: Proportion of diet that is contaminated | B37: Prop
B38: Central | C38: 0.3 | D38: Unitless | E38: Scenario parameter
B39: Lower | C39: 0.1 | E39: Scenario parameter
B40: Upper | C40: 1 | E40: Scenario parameter
A41: Dose
A42: Toxic Equivalency Factor for formulation: (See risk assessment if this has a value other than 1.) | B42: TEF
B43: Central | C43: ='A01'!C$35 -> 1 | D43: Unitless | E43: Worksheet A01
B44: Lower | C44: ='A01'!C$36 -> 1 | D44: Note 2 | E44: Worksheet A01
B45: Upper | C45: ='A01'!C$37 -> 1 | D45: Note 2 | E45: Worksheet A01
A46: Dose | B46: Dose | C46: = ConcFish × AmntFish × Prop ÷ BW
B47: Central | C47: =C18*C34*C38/C$22 -> 0.0001898717036 | D47: mg/kg | E47: Eq
B48: Lower | C48: =C19*C35*C39/C$22 -> 9.517886166e-07 | D48: mg/kg | E48: Eq
B49: Upper | C49: 0.01845589917 | D49: mg/kg | E49: Eq

Sheet F03b
A1: Acute scenario for the consumption of contaminated Fish by Carnivorous mammal after an accidental spill of the pesticide into a pond
A2: Short Title | B2: Fish consumption, accidental spill | E2: FishKcalPondSpillAcV6
A3: Predator | B3: Carnivorous mammal
A4: Food Item (Prey) | B4: Fish
A5: Duration | B5: Acute
A6: Parameter/Assumption | B6: Code / Range | C6: Equation/ Value | D6: Units | E6: Reference/Designation
A7: Pond
A8: Concentration in pond water | B8: ConcWat
B9: Central | C9: =B04b!Water_C -> 0.00773106383 | D9: mg/L | E9: ='B04b'!Water_C
B10: Lower | C10: =B04b!Water_L -> 0.0003875426621 | E10: ='B04b'!Water_L
B11: Upper | C11: =B04b!Water_U -> 0.1326131387 | E11: ='B04b'!Water_U
A12: Fish
A13: Bioconcentration factor | B13: BCF
B14: Central | C14: ='B01'!$C$5 -> 0.83 | D14: L/kg | E14: Section 3.2.3.5.
B15: Lower | C15: ='B01'!$C$5 -> 0.83 | E15: Section 3.2.3.5.
B16: Upper | C16: ='B01'!$C$5 -> 0.83 | E16: Section 3.2.3.5.
A17: Concentration in fish | B17: ConcFish | C17: ConcWat × BCF
B18: Central | C18: =C9*C14 -> 0.006416782979 | D18: mg/kg | E18: Eq
B19: Lower | C19: =C10*C15 -> 0.0003216604096 | E19: Eq
B20: Upper | C20: =C11*C16 -> 0.1100689051 | E20: Eq
A21: Receptor
A22: Body weight | B22: BW | C22: ='A02'!$C$92 -> 5 | D22: kg | E22: U.S. EPA/ORD 1993
A23: Allometric coefficients for caloric requirement per day in kilocalories and BW in grams
B24: alpha | C24: ='A02'!$C$93 -> 0.6167 | E24: U.S. EPA/ORD 1993
B25: beta | C25: ='A02'!$C$94 -> 0.862 | E25: U.S. EPA/ORD 1993
A26: Caloric requirement per day | B26: KR | C26: =C24*(C22*1000)^C25 -> 951.8885266 | D26: kcal/day | E26: Eq
A27: Caloric content of commodity (dry weight) | B27: KCD | C27: 4.47 | D27: kcal/gdw [Note 1] | E27: WkMk Documentation
A28: Food consumed per day (dry weight) | B28: AmntDry | C28: = KR ÷ KCD
C29: =C26/C27 -> 212.9504534 | D29: gdry/day | E29: Eq
A30: Water content of vegetation as a proportion | B30: PropWater | C30: 0.7 | D30: gwater/gfood | E30: WkMk Documentation
A31: Dry weight content of vegetation as a proportion | B31: PropDry | C31: = 1-PropWater
C32: =1-C30 -> 0.3 | D32: gdry/gfood | E32: Eq
A33: Amount of fish consumed per day, wet weight | B33: AmntFish | C33: = (AmntDry ÷ PropDry) ÷ (1000g/kg)
B34: Central | C34: =(C29/C32)/1000 -> 0.7098348446 | D34: kgfood/day | E34: Eq
B35: Lower | C35: =C34*0.3 -> 0.2129504534 | D35: Note 1 | E35: Eq
B36: Upper | C36: =C34*1.7 -> 1.206719236 | D36: Note 1 | E36: Eq
A37: Proportion of diet that is contaminated | B37: Prop
B38: Central | C38: 0.3 | D38: Unitless | E38: Scenario parameter
B39: Lower | C39: 0.1 | E39: Scenario parameter
B40: Upper | C40: 1 | E40: Scenario parameter
A41: Dose
A42: Toxic Equivalency Factor for formulation: (See risk assessment if this has a value other than 1.) | B42: TEF
B43: Central | C43: ='A01'!C$35 -> 1 | D43: Unitless | E43: Worksheet A01
B44: Lower | C44: ='A01'!C$36 -> 1 | D44: Note 2 | E44: Worksheet A01
B45: Upper | C45: ='A01'!C$37 -> 1 | D45: Note 2 | E45: Worksheet A01
A46: Dose | B46: Dose | C46: = ConcFish × AmntFish × Prop ÷ BW
B47: Central | C47: =C18*C34*C38/C$22 -> 0.0002732913689 | D47: mg/kg | E47: Eq
B48: Lower | C48: =C19*C35*C39/C$22 -> 1.369954601e-06 | D48: mg/kg | E48: Eq
B49: Upper | C49: 0.02656445301 | D49: mg/kg | E49: Eq

Sheet F03c
A1: Acute scenario for the consumption of contaminated Fish by Bird (piscivorous) after an accidental spill of the pesticide into a pond
A2: Short Title | B2: Fish consumption, accidental spill | E2: FishKcalPondSpillAcV6
A3: Predator | B3: Bird (piscivorous)
A4: Food Item (Prey) | B4: Fish
A5: Duration | B5: Acute
A6: Parameter/Assumption | B6: Code / Range | C6: Equation/ Value | D6: Units | E6: Reference/Designation
A7: Pond
A8: Concentration in pond water | B8: ConcWat
B9: Central | C9: =B04b!Water_C -> 0.00773106383 | D9: mg/L | E9: ='B04b'!Water_C
B10: Lower | C10: =B04b!Water_L -> 0.0003875426621 | E10: ='B04b'!Water_L
B11: Upper | C11: =B04b!Water_U -> 0.1326131387 | E11: ='B04b'!Water_U
A12: Fish
A13: Bioconcentration factor | B13: BCF
B14: Central | C14: ='B01'!$C$5 -> 0.83 | D14: L/kg | E14: Section 3.2.3.5.
B15: Lower | C15: ='B01'!$C$5 -> 0.83 | E15: Section 3.2.3.5.
B16: Upper | C16: ='B01'!$C$5 -> 0.83 | E16: Section 3.2.3.5.
A17: Concentration in fish | B17: ConcFish | C17: ConcWat × BCF
B18: Central | C18: =C9*C14 -> 0.006416782979 | D18: mg/kg | E18: Eq
B19: Lower | C19: =C10*C15 -> 0.0003216604096 | E19: Eq
B20: Upper | C20: =C11*C16 -> 0.1100689051 | E20: Eq
A21: Receptor
A22: Body weight | B22: BW | C22: ='A02'!$C$47 -> 2.4 | D22: kg | E22: Sibley 2000
A23: Allometric coefficients for caloric requirement per day in kilocalories and BW in grams
B24: alpha | C24: ='A02'!$C$50 -> 1.916 | E24: U.S. EPA/ORD 1993
B25: beta | C25: ='A02'!$C$51 -> 0.704 | E25: U.S. EPA/ORD 1993
A26: Caloric requirement per day | B26: KR | C26: =C24*(C22*1000)^C25 -> 459.2659192 | D26: kcal/day | E26: Eq
A27: Caloric content of commodity (dry weight) | B27: KCD | C27: 3.87 | D27: kcal/gdw [Note 1] | E27: WkMk Documentation
A28: Food consumed per day (dry weight) | B28: AmntDry | C28: = KR ÷ KCD
C29: =C26/C27 -> 118.6733641 | D29: gdry/day | E29: Eq
A30: Water content of vegetation as a proportion | B30: PropWater | C30: 0.7 | D30: gwater/gfood | E30: WkMk Documentation
A31: Dry weight content of vegetation as a proportion | B31: PropDry | C31: = 1-PropWater
C32: =1-C30 -> 0.3 | D32: gdry/gfood | E32: Eq
A33: Amount of fish consumed per day, wet weight | B33: AmntFish | C33: = (AmntDry ÷ PropDry) ÷ (1000g/kg)
B34: Central | C34: =(C29/C32)/1000 -> 0.3955778805 | D34: kgfood/day | E34: Eq
B35: Lower | C35: =C34*0.3 -> 0.1186733641 | D35: Note 1 | E35: Eq
B36: Upper | C36: =C34*1.7 -> 0.6724823968 | D36: Note 1 | E36: Eq
A37: Proportion of diet that is contaminated | B37: Prop
B38: Central | C38: 0.3 | D38: Unitless | E38: Scenario parameter
B39: Lower | C39: 0.1 | E39: Scenario parameter
B40: Upper | C40: 1 | E40: Scenario parameter
A41: Dose
A42: Toxic Equivalency Factor for formulation: (See risk assessment if this has a value other than 1.) | B42: TEF
B43: Central | C43: ='A01'!C$35 -> 1 | D43: Unitless | E43: Worksheet A01
B44: Lower | C44: ='A01'!C$36 -> 1 | D44: Note 2 | E44: Worksheet A01
B45: Upper | C45: ='A01'!C$37 -> 1 | D45: Note 2 | E45: Worksheet A01
A46: Dose | B46: Dose | C46: = ConcFish × AmntFish × Prop ÷ BW
B47: Central | C47: =C18*C34*C38/C$22 -> 0.0003172921763 | D47: mg/kg | E47: Eq
B48: Lower | C48: =C19*C35*C39/C$22 -> 1.590521788e-06 | D48: mg/kg | E48: Eq
B49: Upper | C49: 0.03084141713 | D49: mg/kg | E49: Eq

Sheet F09a
A1: acute scenario for the consumption of contaminated Fish by Large Carnivorous Mammal after an accidental spill of the pesticide into a pond
A2: Short Title | B2: Fish consumption, accidental spill | E2: FishKcalAmb
A3: Predator | B3: Large Carnivorous Mammal
A4: Food Item (Prey) | B4: Fish
A5: Duration | B5: acute
A6: Parameter/Assumption | B6: Code / Range | C6: Equation/ Value | D6: Units | E6: Reference/Designation
A7: Surface Water
A8: Concentration in water | B8: ConcWat | C8: ApR × WCR
B9: Central | C9: =B04a!C18 -> 0.0007823241961 | D9: mg/L | E9: B04a, acute
B10: Lower | C10: =B04a!C19 -> 0.0001568653465 | E10: B04a, acute
B11: Upper | C11: =B04a!C20 -> 0.002683885928 | E11: B04a, acute
A12: Fish
A13: Bioconcentration factor | B13: BCF
B14: Central | C14: ='B01'!$C$5 -> 0.83 | D14: L/kg | E14: Section 3.2.3.5.
B15: Lower | C15: ='B01'!$C$5 -> 0.83 | E15: Section 3.2.3.5.
B16: Upper | C16: ='B01'!$C$5 -> 0.83 | E16: Section 3.2.3.5.
A17: Concentration in fish | B17: ConcFish | C17: ConcWat × BCF
B18: Central | C18: =C9*C14 -> 0.0006493290828 | D18: mg/kg | E18: Eq
B19: Lower | C19: =C10*C15 -> 0.0001301982376 | E19: Eq
B20: Upper | C20: =C11*C16 -> 0.00222762532 | E20: Eq
A21: Receptor
A22: Body weight | B22: BW | C22: ='A02'!$C$97 -> 70 | D22: kg | E22: Reid 2006
A23: Allometric coefficients for caloric requirement per day in kilocalories and BW in grams
B24: alpha | C24: ='A02'!$C$98 -> 0.6167 | E24: U.S. EPA/ORD 1993
B25: beta | C25: ='A02'!$C$99 -> 0.862 | E25: U.S. EPA/ORD 1993
A26: Caloric requirement per day | B26: KR | C26: =C24*(C22*1000)^C25 -> 9258.666883 | D26: kcal/day | E26: Eq
A27: Caloric content of prey (wet weight) | B27: KCW | C27: ='A02'!$C$69 -> 1.2 | D27: kcal/g | E27: U.S. EPA/ORD 1993
A28: Amount of food/prey consumed per day, wet weight | B28: Amnt | C28: (KR ÷ KCW)/1000 g/kg
B29: Central | C29: =(C26/C27)/1000 -> 7.715555736 | D29: kg | E29: Eq
B30: Lower | C30: =C$29*0.3 -> 2.314666721 | E30: Eq
B31: Upper | C31: =C$29*1.7 -> 13.11644475 | E31: Eq
A32: Proportion of diet that is contaminated | B32: Prop
B33: Central | C33: 0.3 | D33: Unitless | E33: Scenario parameter
B34: Lower | C34: 0.1 | E34: Scenario parameter
B35: Upper | C35: 1 | E35: Scenario parameter
A36: Dose
A37: Toxic Equivalency Factor for formulation: (See risk assessment if this has a value other than 1.) | B37: TEF
B38: Central | C38: ='A01'!C$35 -> 1 | D38: Unitless | E38: Worksheet A01
B39: Lower | C39: ='A01'!C$36 -> 1 | E39: Worksheet A01
B40: Upper | C40: ='A01'!C$37 -> 1 | E40: Worksheet A01
A41: Dose | B41: Dose | C41: ConcFish × Amnt × Prop × TEF ÷ BW
B42: Central | C42: =C18*C29*C33*C38/C$22 -> 2.147114884e-05 | D42: mg/kg | E42: Eq
B43: Lower | C43: =C19*C30*C34*C39/C$22 -> 4.305221823e-07 | D43: mg/kg | E43: Eq
B44: Upper | C44: 0.000417407492 | D44: mg/kg | E44: Eq

Sheet F09b
A1: acute scenario for the consumption of contaminated Fish by Carnivorous mammal after an accidental spill of the pesticide into a pond
A2: Short Title | B2: Fish consumption, accidental spill | E2: FishKcalAmb
A3: Predator | B3: Carnivorous mammal
A4: Food Item (Prey) | B4: Fish
A5: Duration | B5: acute
A6: Parameter/Assumption | B6: Code / Range | C6: Equation/ Value | D6: Units | E6: Reference/Designation
A7: Surface Water
A8: Concentration in water | B8: ConcWat | C8: ApR × WCR
B9: Central | C9: =B04a!C18 -> 0.0007823241961 | D9: mg/L | E9: B04a, acute
B10: Lower | C10: =B04a!C19 -> 0.0001568653465 | E10: B04a, acute
B11: Upper | C11: =B04a!C20 -> 0.002683885928 | E11: B04a, acute
A12: Fish
A13: Bioconcentration factor | B13: BCF
B14: Central | C14: ='B01'!$C$5 -> 0.83 | D14: L/kg | E14: Section 3.2.3.5.
B15: Lower | C15: ='B01'!$C$5 -> 0.83 | E15: Section 3.2.3.5.
B16: Upper | C16: ='B01'!$C$5 -> 0.83 | E16: Section 3.2.3.5.
A17: Concentration in fish | B17: ConcFish | C17: ConcWat × BCF
B18: Central | C18: =C9*C14 -> 0.0006493290828 | D18: mg/kg | E18: Eq
B19: Lower | C19: =C10*C15 -> 0.0001301982376 | E19: Eq
B20: Upper | C20: =C11*C16 -> 0.00222762532 | E20: Eq
A21: Receptor
A22: Body weight | B22: BW | C22: ='A02'!$C$92 -> 5 | D22: kg | E22: U.S. EPA/ORD 1993
A23: Allometric coefficients for caloric requirement per day in kilocalories and BW in grams
B24: alpha | C24: ='A02'!$C$93 -> 0.6167 | E24: U.S. EPA/ORD 1993
B25: beta | C25: ='A02'!$C$94 -> 0.862 | E25: U.S. EPA/ORD 1993
A26: Caloric requirement per day | B26: KR | C26: =C24*(C22*1000)^C25 -> 951.8885266 | D26: kcal/day | E26: Eq
A27: Caloric content of prey (wet weight) | B27: KCW | C27: ='A02'!$C$69 -> 1.2 | D27: kcal/g | E27: U.S. EPA/ORD 1993
A28: Amount of food/prey consumed per day, wet weight | B28: Amnt | C28: (KR ÷ KCW)/1000 g/kg
B29: Central | C29: =(C26/C27)/1000 -> 0.7932404388 | D29: kg | E29: Eq
B30: Lower | C30: =C$29*0.3 -> 0.2379721316 | E30: Eq
B31: Upper | C31: =C$29*1.7 -> 1.348508746 | E31: Eq
A32: Proportion of diet that is contaminated | B32: Prop
B33: Central | C33: 0.3 | D33: Unitless | E33: Scenario parameter
B34: Lower | C34: 0.1 | E34: Scenario parameter
B35: Upper | C35: 1 | E35: Scenario parameter
A36: Dose
A37: Toxic Equivalency Factor for formulation: (See risk assessment if this has a value other than 1.) | B37: TEF
B38: Central | C38: ='A01'!C$35 -> 1 | D38: Unitless | E38: Worksheet A01
B39: Lower | C39: ='A01'!C$36 -> 1 | E39: Worksheet A01
B40: Upper | C40: ='A01'!C$37 -> 1 | E40: Worksheet A01
A41: Dose | B41: Dose | C41: ConcFish × Amnt × Prop × TEF ÷ BW
B42: Central | C42: =C18*C29*C33*C38/C$22 -> 3.090444519e-05 | D42: mg/kg | E42: Eq
B43: Lower | C43: =C19*C30*C34*C39/C$22 -> 6.196710427e-07 | D43: mg/kg | E43: Eq
B44: Upper | C44: 0.0006007944455 | D44: mg/kg | E44: Eq

Sheet F09c
A1: acute scenario for the consumption of contaminated Fish by Bird (piscivorous) after an accidental spill of the pesticide into a pond
A2: Short Title | B2: Fish consumption, accidental spill | E2: FishKcalAmb
A3: Predator | B3: Bird (piscivorous)
A4: Food Item (Prey) | B4: Fish
A5: Duration | B5: acute
A6: Parameter/Assumption | B6: Code / Range | C6: Equation/ Value | D6: Units | E6: Reference/Designation
A7: Surface Water
A8: Concentration in water | B8: ConcWat | C8: ApR × WCR
B9: Central | C9: =B04a!C18 -> 0.0007823241961 | D9: mg/L | E9: B04a, acute
B10: Lower | C10: =B04a!C19 -> 0.0001568653465 | E10: B04a, acute
B11: Upper | C11: =B04a!C20 -> 0.002683885928 | E11: B04a, acute
A12: Fish
A13: Bioconcentration factor | B13: BCF
B14: Central | C14: ='B01'!$C$5 -> 0.83 | D14: L/kg | E14: Section 3.2.3.5.
B15: Lower | C15: ='B01'!$C$5 -> 0.83 | E15: Section 3.2.3.5.
B16: Upper | C16: ='B01'!$C$5 -> 0.83 | E16: Section 3.2.3.5.
A17: Concentration in fish | B17: ConcFish | C17: ConcWat × BCF
B18: Central | C18: =C9*C14 -> 0.0006493290828 | D18: mg/kg | E18: Eq
B19: Lower | C19: =C10*C15 -> 0.0001301982376 | E19: Eq
B20: Upper | C20: =C11*C16 -> 0.00222762532 | E20: Eq
A21: Receptor
A22: Body weight | B22: BW | C22: ='A02'!$C$47 -> 2.4 | D22: kg | E22: Sibley 2000
A23: Allometric coefficients for caloric requirement per day in kilocalories and BW in grams
B24: alpha | C24: ='A02'!$C$50 -> 1.916 | E24: U.S. EPA/ORD 1993
B25: beta | C25: ='A02'!$C$51 -> 0.704 | E25: U.S. EPA/ORD 1993
A26: Caloric requirement per day | B26: KR | C26: =C24*(C22*1000)^C25 -> 459.2659192 | D26: kcal/day | E26: Eq
A27: Caloric content of prey (wet weight) | B27: KCW | C27: ='A02'!$C$69 -> 1.2 | D27: kcal/g | E27: U.S. EPA/ORD 1993
A28: Amount of food/prey consumed per day, wet weight | B28: Amnt | C28: (KR ÷ KCW)/1000 g/kg
B29: Central | C29: =(C26/C27)/1000 -> 0.3827215994 | D29: kg | E29: Eq
B30: Lower | C30: =C$29*0.3 -> 0.1148164798 | E30: Eq
B31: Upper | C31: =C$29*1.7 -> 0.6506267189 | E31: Eq
A32: Proportion of diet that is contaminated | B32: Prop
B33: Central | C33: 0.3 | D33: Unitless | E33: Scenario parameter
B34: Lower | C34: 0.1 | E34: Scenario parameter
B35: Upper | C35: 1 | E35: Scenario parameter
A36: Dose
A37: Toxic Equivalency Factor for formulation: (See risk assessment if this has a value other than 1.) | B37: TEF
B38: Central | C38: ='A01'!C$35 -> 1 | D38: Unitless | E38: Worksheet A01
B39: Lower | C39: ='A01'!C$36 -> 1 | E39: Worksheet A01
B40: Upper | C40: ='A01'!C$37 -> 1 | E40: Worksheet A01
A41: Dose | B41: Dose | C41: ConcFish × Amnt × Prop × TEF ÷ BW
B42: Central | C42: =C18*C29*C33*C38/C$22 -> 3.106403313e-05 | D42: mg/kg | E42: Eq
B43: Lower | C43: =C19*C30*C34*C39/C$22 -> 6.228709715e-07 | D43: mg/kg | E43: Eq
B44: Upper | C44: 0.0006038968972 | D44: mg/kg | E44: Eq

Sheet F12a
A1: Consumption of contaminated water, Small Mammal, chronic exposure
A2: Short Title | B2: Water consumption | E2: WatAmbAllo
A3: Receptor | B3: Small Mammal
A4: Duration | B4: chronic
A5: Parameter/Assumption | B5: Code / Range | C5: Equation/ Value | D5: Units | E5: Reference/Designation
A6: Concentration in water | B6: ConcWat | C6: ApR × WCR × TEF
B7: Central | C7: =B04a!C22 -> 2.508122751e-05 | D7: mg/L | E7: B04a, chronic
B8: Lower | C8: =B04a!C23 -> 1.25727143e-06 | E8: B04a, chronic
B9: Upper | C9: =B04a!C24 -> 0.0001720901452 | E9: B04a, chronic
A10: Body weight | B10: BW | C10: ='A02'!$C$116 -> 0.02 | D10: kg | E10: Default
A11: Allometric coefficients for water consumption per day in liters and BW in kilograms
B12: alpha | C12: ='A02'!$C$124 -> 0.099 | E12: U.S. EPA/ORD 1993
B13: beta | C13: ='A02'!$C$125 -> 0.9 | E13: U.S. EPA/ORD 1993
A14: Amount of water consumed per day | C14: Amnt = alpha BW beta
B15: Amnt | C15: =C12*(C10^C13) -> 0.002927940121 | D15: liters | E15: Eq
A16: Dose | B16: Dose | C16: ConcWat × Amnt ÷ BW
B17: Central | C17: =C7*C$15/C$10 -> 3.671816615e-06 | D17: mg/kg | E17: Eq
B18: Lower | C18: =C8*C$15/C$10 -> 1.840607732e-07 | D18: mg/kg | E18: Eq
B19: Upper | C19: =C9*C$15/C$10 -> 2.519348202e-05 | D19: mg/kg | E19: Eq

Sheet F12b
A1: Consumption of contaminated water, 400 gram mammal (e.g., squirrel), chronic exposure
A2: Short Title | B2: Water consumption | E2: WatAmbAllo
A3: Receptor | B3: 400 gram mammal (e.g., squirrel)
A4: Duration | B4: chronic
A5: Parameter/Assumption | B5: Code / Range | C5: Equation/ Value | D5: Units | E5: Reference/Designation
A6: Concentration in water | B6: ConcWat | C6: ApR × WCR × TEF
B7: Central | C7: =B04a!C22 -> 2.508122751e-05 | D7: mg/L | E7: B04a, chronic
B8: Lower | C8: =B04a!C23 -> 1.25727143e-06 | E8: B04a, chronic
B9: Upper | C9: =B04a!C24 -> 0.0001720901452 | E9: B04a, chronic
A10: Body weight | B10: BW | C10: ='A02'!$C$85 -> 0.4 | D10: kg | E10: Default
A11: Allometric coefficients for water consumption per day in liters and BW in kilograms
B12: alpha | C12: ='A02'!$C$90 -> 0.099 | E12: U.S. EPA/ORD 1993
B13: beta | C13: ='A02'!$C$91 -> 0.9 | E13: U.S. EPA/ORD 1993
A14: Amount of water consumed per day | C14: Amnt = alpha BW beta
B15: Amnt | C15: =C12*(C10^C13) -> 0.04339994576 | D15: liters | E15: Eq
A16: Dose | B16: Dose | C16: ConcWat × Amnt ÷ BW
B17: Central | C17: =C7*C$15/C$10 -> 2.721309784e-06 | D17: mg/kg | E17: Eq
B18: Lower | C18: =C8*C$15/C$10 -> 1.364137797e-07 | D18: mg/kg | E18: Eq
B19: Upper | C19: =C9*C$15/C$10 -> 1.867175742e-05 | D19: mg/kg | E19: Eq

Sheet F12c
A1: Consumption of contaminated water, Carnivorous mammal, chronic exposure
A2: Short Title | B2: Water consumption | E2: WatAmbAllo
A3: Receptor | B3: Carnivorous mammal
A4: Duration | B4: chronic
A5: Parameter/Assumption | B5: Code / Range | C5: Equation/ Value | D5: Units | E5: Reference/Designation
A6: Concentration in water | B6: ConcWat | C6: ApR × WCR × TEF
B7: Central | C7: =B04a!C22 -> 2.508122751e-05 | D7: mg/L | E7: B04a, chronic
B8: Lower | C8: =B04a!C23 -> 1.25727143e-06 | E8: B04a, chronic
B9: Upper | C9: =B04a!C24 -> 0.0001720901452 | E9: B04a, chronic
A10: Body weight | B10: BW | C10: ='A02'!$C$92 -> 5 | D10: kg | E10: U.S. EPA/ORD 1993
A11: Allometric coefficients for water consumption per day in liters and BW in kilograms
B12: alpha | C12: ='A02'!$C$95 -> 0.099 | E12: U.S. EPA/ORD 1993
B13: beta | C13: ='A02'!$C$96 -> 0.9 | E13: U.S. EPA/ORD 1993
A14: Amount of water consumed per day | C14: Amnt = alpha BW beta
B15: Amnt | C15: =C12*(C10^C13) -> 0.4214132616 | D15: liters | E15: Eq
A16: Dose | B16: Dose | C16: ConcWat × Amnt ÷ BW
B17: Central | C17: =C7*C$15/C$10 -> 2.113912378e-06 | D17: mg/kg | E17: Eq
B18: Lower | C18: =C8*C$15/C$10 -> 1.059661708e-07 | D18: mg/kg | E18: Eq
B19: Upper | C19: =C9*C$15/C$10 -> 1.450421387e-05 | D19: mg/kg | E19: Eq

Sheet F12d
A1: Consumption of contaminated water, Large Mammal, chronic exposure
A2: Short Title | B2: Water consumption | E2: WatAmbAllo
A3: Receptor | B3: Large Mammal
A4: Duration | B4: chronic
A5: Parameter/Assumption | B5: Code / Range | C5: Equation/ Value | D5: Units | E5: Reference/Designation
A6: Concentration in water | B6: ConcWat | C6: ApR × WCR × TEF
B7: Central | C7: =B04a!C22 -> 2.508122751e-05 | D7: mg/L | E7: B04a, chronic
B8: Lower | C8: =B04a!C23 -> 1.25727143e-06 | E8: B04a, chronic
B9: Upper | C9: =B04a!C24 -> 0.0001720901452 | E9: B04a, chronic
A10: Body weight | B10: BW | C10: ='A02'!$C$106 -> 70 | D10: kg | E10: Default
A11: Allometric coefficients for water consumption per day in liters and BW in kilograms
B12: alpha | C12: ='A02'!$C$109 -> 0.099 | E12: U.S. EPA/ORD 1993
B13: beta | C13: ='A02'!$C$110 -> 0.9 | E13: U.S. EPA/ORD 1993
A14: Amount of water consumed per day | C14: Amnt = alpha BW beta
B15: Amnt | C15: =C12*(C10^C13) -> 4.531306412 | D15: liters | E15: Eq
A16: Dose | B16: Dose | C16: ConcWat × Amnt ÷ BW
B17: Central | C17: =C7*C$15/C$10 -> 1.623581815e-06 | D17: mg/kg | E17: Eq
B18: Lower | C18: =C8*C$15/C$10 -> 8.138688705e-08 | D18: mg/kg | E18: Eq
B19: Upper | C19: =C9*C$15/C$10 -> 1.113990255e-05 | D19: mg/kg | E19: Eq

Sheet F12e
A1: Consumption of contaminated water, Small Bird, chronic exposure
A2: Short Title | B2: Water consumption | E2: WatAmbAllo
A3: Receptor | B3: Small Bird
A4: Duration | B4: chronic
A5: Parameter/Assumption | B5: Code / Range | C5: Equation/ Value | D5: Units | E5: Reference/Designation
A6: Concentration in water | B6: ConcWat | C6: ApR × WCR × TEF
B7: Central | C7: =B04a!C22 -> 2.508122751e-05 | D7: mg/L | E7: B04a, chronic
B8: Lower | C8: =B04a!C23 -> 1.25727143e-06 | E8: B04a, chronic
B9: Upper | C9: =B04a!C24 -> 0.0001720901452 | E9: B04a, chronic
A10: Body weight | B10: BW | C10: ='A02'!$C$54 -> 0.01 | D10: kg | E10: Default
A11: Allometric coefficients for water consumption per day in liters and BW in kilograms
B12: alpha | C12: ='A02'!$C$57 -> 0.059 | E12: U.S. EPA/ORD 1993
B13: beta | C13: ='A02'!$C$58 -> 0.67 | E13: U.S. EPA/ORD 1993
A14: Amount of water consumed per day | C14: Amnt = alpha BW beta
B15: Amnt | C15: =C12*(C10^C13) -> 0.002696820319 | D15: liters | E15: Eq
A16: Dose | B16: Dose | C16: ConcWat × Amnt ÷ BW
B17: Central | C17: =C7*C$15/C$10 -> 6.763956398e-06 | D17: mg/kg | E17: Eq
B18: Lower | C18: =C8*C$15/C$10 -> 3.39063514e-07 | D18: mg/kg | E18: Eq
B19: Upper | C19: =C9*C$15/C$10 -> 4.640962001e-05 | D19: mg/kg | E19: Eq

Sheet F12f
A1: Consumption of contaminated water, Large Bird, chronic exposure
A2: Short Title | B2: Water consumption | E2: WatAmbAllo
A3: Receptor | B3: Large Bird
A4: Duration | B4: chronic
A5: Parameter/Assumption | B5: Code / Range | C5: Equation/ Value | D5: Units | E5: Reference/Designation
A6: Concentration in water | B6: ConcWat
B7: Central | C7: =B04a!C22 -> 2.508122751e-05 | D7: mg/L | E7: B04a, chronic
B8: Lower | C8: =B04a!C23 -> 1.25727143e-06 | E8: B04a, chronic
B9: Upper | C9: =B04a!C24 -> 0.0001720901452 | E9: B04a, chronic
A10: Body weight | B10: BW | C10: ='A02'!$C$38 -> 4 | D10: kg | E10: Default
A11: Allometric coefficients for water consumption per day in liters and BW in kilograms
B12: alpha | C12: ='A02'!$C$41 -> 0.059 | E12: U.S. EPA/ORD 1993
B13: beta | C13: ='A02'!$C$42 -> 0.67 | E13: U.S. EPA/ORD 1993
A14: Amount of water consumed per day | C14: Amnt = alpha BW beta
B15: Amnt | C15: =C12*(C10^C13) -> 0.1493592781 | D15: liters | E15: Eq
A16: Dose | B16: Dose | C16: ConcWat × Amnt ÷ BW
B17: Central | C17: =C7*C$15/C$10 -> 9.365285087e-07 | D17: mg/kg | E17: Eq
B18: Lower | C18: =C8*C$15/C$10 -> 4.69462883e-08 | D18: mg/kg | E18: Eq
B19: Upper | C19: =C9*C$15/C$10 -> 6.425814962e-06 | D19: mg/kg | E19: Eq

Sheet G01
A1: Summary of Exposure Assessments for the Terrestrial Animals | F1: G01V6
A2: Application Rate: | B2: ='A01'!ApRt_C -> 2 | C2: lb a.e./acre | F2: G01V6
A3: Scenario | B3: Receptor | C3: mg/kg/day or mg/kg/event | F3: Detail Worksheet
C4: Central | D4: Lower | E4: Upper
A5: Accidental Acute Exposures
A6: Direct Spray | J6: Spray: Partial Abs
A7: first-order absorption | B7: Small mammal (20g) | C7: No exposure scenario | J7: Spray: 100% Abs
A8: 100% absorption | B8: Small mammal (20g) | C8: No exposure scenario
A9: Contaminated Water | J9: Spill: Sm Mam
A10: Spill | B10: Small mammal (20g) | C10: =F02a!Dose_C -> 0.001131804598 | D10: =F02a!Dose_L -> 5.673508544e-05 | E10: =F02a!Dose_U -> 0.01941416646 | F10: F02a | J10: Spill: Med Mam
A11: Spill | B11: Larger Mammal (400g) | C11: =F02b!Dose_C -> 0.0008388193773 | D11: =F02b!Dose_L -> 4.204832629e-05 | E11: =F02b!Dose_U -> 0.01438850757 | F11: F02b | J11: Spill: Canid
A12: Spill | B12: Canid (5 kg) | C12: =F02c!Dose_C -> 0.0006515945649 | D12: =F02c!Dose_L -> 3.266312345e-05 | E12: =F02c!Dose_U -> 0.01117698706 | F12: F02c | J12: Spill: Lrg Mam
A13: Spill | B13: Large Mammal (70g) | C13: =F02d!Dose_C -> 0.0005004545586 | D13: =F02d!Dose_L -> 2.508677928e-05 | E13: =F02d!Dose_U -> 0.008584439508 | F13: F02d | J13: Spill: Sm Brd
A14: Spill | B14: Small bird (10g) | C14: =F02e!Dose_C -> 0.002084929002 | D14: =F02e!Dose_L -> 0.0001045132926 | E14: =F02e!Dose_U -> 0.03576338069 | F14: F02e | J14: Spill: Lrg Brd
A15: Spill | B15: Large Bird (4 kg) | C15: =F02f!Dose_C -> 0.0002886765281 | D15: =F02f!Dose_L -> 1.447077306e-05 | E15: =F02f!Dose_U -> 0.004951750665 | F15: F02f
A16: Consumption of contaminated Fish | J16: Fish: Bear
A17: Spill | B17: Large Mammalian Carnivore (70 kg) | C17: =F03a!Dose_C -> 0.0001898717036 | D17: =F03a!Dose_L -> 9.517886166e-07 | E17: =F03a!Dose_U -> 0.01845589917 | F17: F03a | J17: Fish: Fox
A18: Spill | B18: Canid (5 kg) | C18: =F03b!Dose_C -> 0.0002732913689 | D18: =F03b!Dose_L -> 1.369954601e-06 | E18: =F03b!Dose_U -> 0.02656445301 | F18: F03b | J18: Fish: Bird
A19: Spill | B19: Fish-eating bird (2.4 kg) | C19: =F03c!Dose_C -> 0.0003172921763 | D19: =F03c!Dose_L -> 1.590521788e-06 | E19: =F03c!Dose_U -> 0.03084141713 | F19: F03c
A20: Non-Accidental Acute Exposures
A21: Contaminated Fruit (Lowest Residue Rate)
B22: Small mammal (20g) | C22: No exposure scenario | J22: Grass: Sm Mam
B23: Larger Mammal (400g) | C23: No exposure scenario | J23: Grass: Med Mam
B24: Large Mammal (70g) | C24: No exposure scenario | J24: Grass: Lrg Mam
B25: Small bird (10g) | C25: No exposure scenario | J25: Grass: Sm Brd
B26: Large Bird (4 kg) | C26: No exposure scenario | J26: Grass: Lrg Brd
A27: Contaminated Vegetation (Short Grass - Highest Residue Rate)
B28: Small mammal (20g) | C28: No exposure scenario | J28: Veg: Sm Mam
B29: Larger Mammal (400g) | C29: No exposure scenario | J29: Veg: Med Mam
B30: Large Mammal | C30: No exposure scenario | J30: Veg: Lrg Mam
B31: Small bird (10g) | C31: No exposure scenario | J31: Veg: Sm Brd
B32: Large Bird (4 kg) | C32: No exposure scenario | J32: Veg: Lrg Brd
A33: Contaminated Water
B34: Small mammal (20g) | C34: No exposure scenario | J34: Water: Sm Mam
B35: Larger Mammal (400g) | C35: No exposure scenario | J35: Water: Med Mam
B36: Canid (5 kg) | C36: No exposure scenario | J36: Water: Canid
B37: Large Mammal (70g) | C37: No exposure scenario | J37: Water: Lrg Mam
B38: Small bird (10g) | C38: No exposure scenario | J38: Water: Sm Brd
B39: Large Bird (4 kg) | C39: No exposure scenario | J39: Water: Lrg Brd
A40: Contaminated Insects
B41: Small mammal (20g) | C41: No exposure scenario | J41: Insects: Sm Mam
B42: Larger Mammal (400g) | C42: No exposure scenario | J42: Insects: Med Mam
B43: Small bird (10g) | C43: No exposure scenario | J43: Insects: Sm Brd
A44: Consumption of small mammal (after direct spray) by predator
B45: Canid (5 kg) | C45: No exposure scenario | J45: Canid Eats Sm Mam
B46: Carnivorous bird (640 g) | C46: No exposure scenario | J46: Bird Eats Sm Mam
A47: Consumption of contaminated Fish
B48: Large Mammalian Carnivore (70 kg) | C48: =F09a!Dose_C -> 2.147114884e-05 | D48: =F09a!Dose_L -> 4.305221823e-07 | E48: =F09a!Dose_U -> 0.000417407492 | F48: F09a | J48: Fish: Lrg Mam
B49: Canid (5 kg) | C49: =F09b!Dose_C -> 3.090444519e-05 | D49: =F09b!Dose_L -> 6.196710427e-07 | E49: =F09b!Dose_U -> 0.0006007944455 | F49: F09b | J49: Fish: Canid
B50: Fish-eating bird (2.4 kg) | C50: =F09c!Dose_C -> 3.106403313e-05 | D50: =F09c!Dose_L -> 6.228709715e-07 | E50: =F09c!Dose_U -> 0.0006038968972 | F50: F09c | J50: Fish: Brd
A51: Chronic/Longer Term Exposures
A52: Contaminated Fruit (Lowest Residue Rate)
B53: Small mammal (20g) | C53: No exposure scenario | I53: Grass: Sm Mam
B54: Larger Mammal (400g) | C54: No exposure scenario | I54: Grass: Med Mam
B55: Large Mammal (70g) | C55: No exposure scenario | I55: Grass: Lrg Mam
B56: Small bird (10g) | C56: No exposure scenario | I56: Grass: Sm Brd
B57: Large Bird (4 kg) | C57: No exposure scenario | I57: Grass: Lrg Brd
A58: Contaminated Vegetation (Short Grass - Highest Residue Rate)
B59: Small mammal (20g) | C59: No exposure scenario | I59: Veg: Sm Mam
B60: Larger Mammal (400g) | C60: No exposure scenario | I60: Veg: Med Mam
B61: Large Mammal (70g) | C61: No exposure scenario | I61: Veg: Lrg Mam
B62: Small bird (10g) | C62: No exposure scenario | I62: Veg: Sm Brd
B63: Large Bird (4 kg) | C63: No exposure scenario | I63: Veg: Lrg Brd
A64: Contaminated Water
B65: Small mammal (20g) | C65: =F12a!Dose_C -> 3.671816615e-06 | D65: =F12a!Dose_L -> 1.840607732e-07 | E65: =F12a!Dose_U -> 2.519348202e-05 | F65: F12a | I65: Water: Sm Mam
B66: Larger Mammal (400g) | C66: =F12b!Dose_C -> 2.721309784e-06 | D66: =F12b!Dose_L -> 1.364137797e-07 | E66: =F12b!Dose_U -> 1.867175742e-05 | F66: F12b | I66: Water: Med Mam
B67: Canid (5 kg) | C67: =F12c!Dose_C -> 2.113912378e-06 | D67: =F12c!Dose_L -> 1.059661708e-07 | E67: =F12c!Dose_U -> 1.450421387e-05 | F67: F12c | I67: Water: Canid
B68: Large Mammal (70g) | C68: =F12d!Dose_C -> 1.623581815e-06 | D68: =F12d!Dose_L -> 8.138688705e-08 | E68: =F12d!Dose_U -> 1.113990255e-05 | F68: F12d | I68: Water: Lrg Mam
B69: Small bird (10g) | C69: =F12e!Dose_C -> 6.763956398e-06 | D69: =F12e!Dose_L -> 3.39063514e-07 | E69: =F12e!Dose_U -> 4.640962001e-05 | F69: F12e | I69: Water: Sm Brd
B70: Large Bird (4 kg) | C70: =F12f!Dose_C -> 9.365285087e-07 | D70: =F12f!Dose_L -> 4.69462883e-08 | E70: =F12f!Dose_U -> 6.425814962e-06 | F70: F12f | I70: Water: Lrg Brd
I72: Fish: Lrg Mam
I73: Fish: Canid
I74: Fish: Brd

Sheet G02
A1: Summary of Hazard Quotients (Toxicity) for the Terrestrial Animals | F1: G01V6
A2: Application Rate: | B2: ='A01'!ApRt_C -> 2 | C2: lb a.e./acre | F2: G01V6
A3: Scenario | B3: Receptor | C3: Hazard Quotients | F3: Toxicity Value
C4: Central | D4: Lower | E4: Upper
A5: Accidental Acute Exposures
A6: Direct Spray | J6: Spray: Partial Abs
A7: first-order absorption | B7: Small mammal (20g) | C7: No exposure scenario | J7: Spray: 100% Abs
A8: 100% absorption | B8: Small mammal (20g) | C8: No exposure scenario
A9: Contaminated Water | J9: Spill: Sm Mam
A10: Spill | B10: Small mammal (20g) | C10: =F02a!$C$22/$F$10 -> 4.527218392e-05 | D10: =F02a!$C$23/$F$10 -> 2.269403418e-06 | E10: =F02a!$C$24/$F$10 -> 0.0007765666585 | F10: ='B02'!$E$5 -> 25 | G10: NOAEL | J10: Spill: Med Mam
A11: Spill | B11: Larger Mammal (400g) | C11: =F02b!$C$22/$F$11 -> 3.355277509e-05 | D11: =F02b!$C$23/$F$11 -> 1.681933052e-06 | E11: =F02b!$C$24/$F$11 -> 0.0005755403027 | F11: ='B02'!$E$5 -> 25 | G11: NOAEL | J11: Spill: Canid
A12: Spill | B12: Canid (5 kg) | C12: =F02c!$C$22/$F$12 -> 2.60637826e-05 | D12: =F02c!$C$23/$F$12 -> 1.306524938e-06 | E12: =F02c!$C$24/$F$12 -> 0.0004470794825 | F12: ='B02'!$E$5 -> 25 | G12: NOAEL | J12: Spill: Lrg Mam
A13: Spill | B13: Large Mammal (70g) | C13: =F02d!$C$22/$F$13 -> 2.001818234e-05 | D13: =F02d!$C$23/$F$13 -> 1.003471171e-06 | E13: =F02d!$C$24/$F$13 -> 0.0003433775803 | F13: ='B02'!$E$5 -> 25 | G13: NOAEL | J13: Spill: Sm Brd
A14: Spill | B14: Small bird (10g) | C14: =F02e!$C$22/$F$14 -> 1.797352588e-05 | D14: =F02e!$C$23/$F$14 -> 9.0097666e-07 | E14: =F02e!$C$24/$F$14 -> 0.000308305006 | F14: ='B02'!$E$15 -> 116 | G14: LOAEL | J14: Spill: Lrg Brd
A15: Spill | B15: Large Bird (4 kg) | C15: =F02f!$C$22/$F$15 -> 2.48859076e-06 | D15: =F02f!$C$23/$F$15 -> 1.247480436e-07 | E15: =F02f!$C$24/$F$15 -> 4.268750573e-05 | F15: ='B02'!$E$15 -> 116 | G15: LOAEL
A16: Consumption of contaminated Fish | J16: Fish: Bear
A17: Spill | B17: Large Mammalian Carnivore (70 kg) | C17: =F03a!$C$47/$F$17 -> 7.594868144e-06 | D17: =F03a!$C$48/$F$17 -> 3.807154467e-08 | E17: =F03a!$C$49/$F$17 -> 0.0007382359668 | F17: ='B02'!$E$5 -> 25 | G17: NOAEL | J17: Fish: Fox
A18: Spill | B18: Canid (5 kg) | C18: =F03b!$C$47/$F$18 -> 1.093165476e-05 | D18: =F03b!$C$48/$F$18 -> 5.479818404e-08 | E18: =F03b!$C$49/$F$18 -> 0.00106257812 | F18: ='B02'!$E$5 -> 25 | G18: NOAEL | J18: Fish: Bird
A19: Spill | B19: Fish-eating bird (2.4 kg) | C19: Toxicity data not available. | F19: N/A
A20: Non-Accidental Acute Exposures
A21: Contaminated Fruit (Lowest Residue Rate)
B22: Small mammal (20g) | C22: No exposure scenario | J22: Grass: Sm Mam
B23: Larger Mammal (400g) | C23: No exposure scenario | J23: Grass: Med Mam
B24: Large Mammal (70g) | C24: No exposure scenario | J24: Grass: Lrg Mam
B25: Small bird (10g) | C25: No exposure scenario | J25: Grass: Sm Brd
B26: Large Bird (4 kg) | C26: No exposure scenario | J26: Grass: Lrg Brd
A27: Contaminated Vegetation (Short Grass - Highest Residue Rate)
B28: Small mammal (20g) | C28: No exposure scenario | J28: Veg: Sm Mam
B29: Larger Mammal (400g) | C29: No exposure scenario | J29: Veg: Med Mam
B30: Large Mammal | C30: No exposure scenario | J30: Veg: Lrg Mam
B31: Small bird (10g) | C31: No exposure scenario | J31: Veg: Sm Brd
B32: Large Bird (4 kg) | C32: No exposure scenario | J32: Veg: Lrg Brd
A33: Contaminated Water
B34: Small mammal (20g) | C34: No exposure scenario | J34: Water: Sm Mam
B35: Larger Mammal (400g) | C35: No exposure scenario | J35: Water: Med Mam
B36: Canid (5 kg) | C36: No exposure scenario | J36: Water: Canid
B37: Large Mammal (70g) | C37: No exposure scenario | J37: Water: Lrg Mam
B38: Small bird (10g) | C38: No exposure scenario | J38: Water: Sm Brd
B39: Large Bird (4 kg) | C39: No exposure scenario | J39: Water: Lrg Brd
A40: Contaminated Insects
B41: Small mammal (20g) | C41: No exposure scenario | J41: Insects: Sm Mam
B42: Larger Mammal (400g) | C42: No exposure scenario | J42: Insects: Med Mam
B43: Small bird (10g) | C43: No exposure scenario | J43: Insects: Sm Brd
A44: Consumption of small mammal (after direct spray) by predator
B45: Canid (5 kg) | C45: No exposure scenario | J45: Canid Eats Sm Mam
B46: Carnivorous bird (640 g) | C46: No exposure scenario | J46: Bird Eats Sm Mam
A47: Consumption of contaminated Fish
B48: Large Mammalian Carnivore (70 kg) | C48: =F09a!$C$42/$F$48 -> 8.588459535e-07 | D48: =F09a!$C$43/$F$48 -> 1.722088729e-08 | E48: =F09a!$C$44/$F$48 -> 1.669629968e-05 | F48: ='B02'!$E$5 -> 25 | G48: NOAEL | J48: Fish: Lrg Mam
B49: Canid (5 kg) | C49: =F09b!$C$42/$F$49 -> 1.236177808e-06 | D49: =F09b!$C$43/$F$49 -> 2.478684171e-08 | E49: =F09b!$C$44/$F$49 -> 2.403177782e-05 | F49: ='B02'!$E$5 -> 25 | G49: NOAEL | J49: Fish: Canid
B50: Fish-eating bird (2.4 kg) | C50: =F09c!$C$42/$F$50 -> 2.677933891e-07 | D50: =F09c!$C$43/$F$50 -> 5.369577341e-09 | E50: =F09c!$C$44/$F$50 -> 5.206007734e-06 | F50: ='B02'!$E$15 -> 116 | G50: LOAEL | J50: Fish: Brd
A51: Chronic/Longer Term Exposures
A52: Contaminated Fruit (Lowest Residue Rate)
B53: Small mammal (20g) | C53: No exposure scenario | I53: Grass: Sm Mam
B54: Larger Mammal (400g) | C54: No exposure scenario | I54: Grass: Med Mam
B55: Large Mammal (70g) | C55: No exposure scenario | I55: Grass: Lrg Mam
B56: Small bird (10g) | C56: No exposure scenario | I56: Grass: Sm Brd
B57: Large Bird (4 kg) | C57: No exposure scenario | I57: Grass: Lrg Brd
A58: Contaminated Vegetation (Short Grass - Highest Residue Rate)
B59: Small mammal (20g) | C59: No exposure scenario | I59: Veg: Sm Mam
B60: Larger Mammal (400g) | C60: No exposure scenario | I60: Veg: Med Mam
B61: Large Mammal (70g) | C61: No exposure scenario | I61: Veg: Lrg Mam
B62: Small bird (10g) | C62: No exposure scenario | I62: Veg: Sm Brd
B63: Large Bird (4 kg) | C63: No exposure scenario | I63: Veg: Lrg Brd
A64: Contaminated Water
B65: Small mammal (20g) | C65: =F12a!$C$17/$F$65 -> 3.059847179e-07 | D65: =F12a!$C$18/$F$65 -> 1.533839776e-08 | E65: =F12a!$C$19/$F$65 -> 2.099456835e-06 | F65: ='B02'!$E$6 -> 12 | G65: NOAEL | I65: Water: Sm Mam
B66: Larger Mammal (400g) | C66: =F12b!$C$17/$F$66 -> 2.267758154e-07 | D66: =F12b!$C$18/$F$66 -> 1.136781498e-08 | E66: =F12b!$C$19/$F$66 -> 1.555979785e-06 | F66: ='B02'!$E$6 -> 12 | G66: NOAEL | I66: Water: Med Mam
B67: Canid (5 kg) | C67: =F12c!$C$17/$F$67 -> 1.761593649e-07 | D67: =F12c!$C$18/$F$67 -> 8.830514237e-09 | E67: =F12c!$C$19/$F$67 -> 1.20868449e-06 | F67: ='B02'!$E$6 -> 12 | G67: NOAEL | I67: Water: Canid
B68: Large Mammal (70g) | C68: =F12d!$C$17/$F$68 -> 1.352984846e-07 | D68: =F12d!$C$18/$F$68 -> 6.782240588e-09 | E68: =F12d!$C$19/$F$68 -> 9.283252121e-07 | F68: ='B02'!$E$6 -> 12 | G68: NOAEL | I68: Water: Lrg Mam
B69: Small bird (10g) | C69: Toxicity data not available. | F69: N/A | I69: Water: Sm Brd
B70: Large Bird (4 kg) | C70: Toxicity data not available. | F70: N/A | I70: Water: Lrg Brd
I72: Fish: Lrg Mam
I73: Fish: Canid
I74: Fish: Brd

Sheet G03
A1: Worksheet G03: Summary of Hazard Quotients for Aquatic Species
A2: Application Rate: | B2: 1 | C2: lb a.e./acre | F2: AqToxSumV6
A3: Exposures | C3: Concentrations (mg/L)
B4: Scenario | C4: Central | D4: Lower | E4: Upper | F4: Worksheet
B5: Accidental Spill | C5: =B04b!Water_C -> 0.00773106383 | D5: =B04b!Water_L -> 0.0003875426621 | E5: =B04b!Water_U -> 0.1326131387 | F5: B04b
B6: Peak EEC | C6: =B04a!Acute_C -> 0.0007823241961 | D6: =B04a!Acute_L -> 0.0001568653465 | E6: =B04a!Acute_U -> 0.002683885928 | F6: B04a, peak
B7: Chronic | C7: =B04a!Chronic_C -> 2.508122751e-05 | D7: =B04a!Chronic_L -> 1.25727143e-06 | E7: =B04a!Chronic_U -> 0.0001720901452 | F7: B04a, chronic
A8: Receptor | B8: Type | C8: Hazard Quotients | F8: Toxicity Value | G8: Toxicity Endpoint
C9: Central | D9: Lower | E9: Upper
A10: Accidental Acute Exposures
A11: Fish | B11: Sensitive | C11: =C$5/$F11 -> 0.04295035461 | D11: 0.00215301479 | E11: 0.7367396594 | F11: ='B02'!$E$7 -> 0.18 | G11: NOAEC* | J11: Fish Sn
B12: Tolerant | C12: 0.01227152989 | D12: 0.0006151470827 | E12: 0.2104970455 | F12: ='B02'!$E$8 -> 0.63 | G12: NOAEC* | J12: Fish Tl
A13: Amphibian | B13: Sensitive | C13: No toxicity data. | F13: N/A | J13: Amph Sn
B14: Tolerant | C14: No toxicity data. | F14: N/A | J14: Amph To
A15: Invertebrate | B15: Sensitive | C15: 0.01405647969 | D15: 0.000704623022 | E15: 0.2411147976 | F15: ='B02'!$E$9 -> 0.55 | G15: NOAEC* | J15: Invt Sn
B16: Tolerant | C16: 0.01405647969 | D16: 0.000704623022 | E16: 0.2411147976 | F16: ='B02'!$E$10 -> 0.55 | G16: NOAEC* | J16: Invt Tl
A17: Macrophyte | B17: Sensitive | C17: No toxicity data. | F17: N/A | J17: Plant Sn
B18: Tolerant | C18: No toxicity data. | F18: N/A | J18: Plant Tl
A19: Algae | B19: Sensitive | C19: =C$5/$F19 -> 0.0214751773 | D19: 0.001076507395 | E19: 0.3683698297 | F19: ='B02'!$E$16 -> 0.36 | G19: NOAEC | J19: Algae Sn
B20: Tolerant | C20: 0.01189394435 | D20: 0.0005962194802 | E20: 0.2040202134 | F20: ='B02'!$E$17 -> 0.65 | G20: NOAEC | J20: Algae Tl
A21: Non-Accidental Acute Exposures
A22: Fish | B22: Sensitive | C22: =C$6/$F22 -> 0.004346245534 | D22: 0.0008714741472 | E22: 0.01491047738 | F22: ='B02'!$E$7 -> 0.18 | G22: NOAEC*
B23: Tolerant | C23: 0.001241784438 | D23: 0.0002489926135 | E23: 0.004260136394 | F23: ='B02'!$E$8 -> 0.63 | G23: NOAEC*
A24: Amphibian | B24: Sensitive | C24: No toxicity data. | F24: N/A
B25: Tolerant | C25: No toxicity data. | F25: N/A
A26: Invertebrate | B26: Sensitive | C26: 0.001422407629 | D26: 0.0002852097209 | E26: 0.004879792597 | F26: ='B02'!$E$9 -> 0.55 | G26: NOAEC*
B27: Tolerant | C27: 0.001422407629 | D27: 0.0002852097209 | E27: 0.004879792597 | F27: ='B02'!$E$10 -> 0.55 | G27: NOAEC*
A28: Macrophyte | B28: Sensitive | C28: No toxicity data. | F28: N/A
B29: Tolerant | C29: No toxicity data. | F29: N/A
A30: Algae | B30: Sensitive | C30: =C$6/$F30 -> 0.002173122767 | D30: 0.0004357370736 | E30: 0.00745523869 | F30: ='B02'!$E$16 -> 0.36 | G30: NOAEC
B31: Tolerant | C31: 0.001203575686 | D31: 0.0002413313023 | E31: 0.004129055274 | F31: ='B02'!$E$17 -> 0.65 | G31: NOAEC
A32: Chronic/Longer Term Exposures
A33: Fish | B33: Sensitive | C33: =C$7/$F33 -> 0.0001393401528 | D33: 6.98484128e-06 | E33: 0.000956056362 | F33: ='B02'!$E$11 -> 0.18 | G33: NOAEC
B34: Tolerant | C34: 0.0001393401528 | D34: 6.98484128e-06 | E34: 0.000956056362 | F34: ='B02'!$E$12 -> 0.18 | G34: NOAEC
A35: Amphibian | B35: Sensitive | C35: No toxicity data. | F35: N/A
B36: Tolerant | C36: No toxicity data. | F36: N/A
A37: Invertebrate | B37: Sensitive | C37: 0.0004324349571 | D37: 2.167709363e-05 | E37: 0.002967071468 | F37: ='B02'!$E$13 -> 0.058 | G37: NOAEC
B38: Tolerant | C38: 0.0004324349571 | D38: 2.167709363e-05 | E38: 0.002967071468 | F38: ='B02'!$E$14 -> 0.058 | G38: NOAEC
A39: Macrophyte | B39: Sensitive | C39: No toxicity data. | F39: N/A
B40: Tolerant | C40: No toxicity data. | F40: N/A
A41: Algae | B41: Sensitive | C41: =C$7/$F41 -> 6.967007642e-05 | D41: 3.49242064e-06 | E41: 0.000478028181 | F41: ='B02'!$E$16 -> 0.36 | G41: NOAEC
B42: Tolerant | C42: 3.858650387e-05 | D42: 1.934263739e-06 | E42: 0.0002647540695 | F42: ='B02'!$E$17 -> 0.65 | G42: NOAEC

Sheet References
A1: References cited in workbook
A2: Citation | B2: Full Reference
A3: Boxenbaum and D’Souza 1990 | B3: Boxenbaum J; D'Souza R. 1990. Interspecies pharmacokinetic scaling, biological design and neoteny. Adv. Drug Res. 19: 139-195.
A4: Burnmaster 1998 | B4: Burnmaster DE. 1998. Lognormal distribution for total water intake and tap water intake by pregnant and lactating women in the United States. Risk Analysis. 18(5): 215-219
A5: Dunning 1993 | B5: Dunning JB. 1993. CRC Handbook of Avian Body Masses. CRC Press, Boca Raton FL, 371 pp.
A6: Durkin et al. 1995 | B6: Durkin PR; Rubin L; Withey J; Meylan W. 1995. Methods of assessing dermal absorption with emphasis on uptake from contaminated vegetation. Toxicol. Indust. Health. 11(1): 63-79.
A7: Harris and Solomon 1992 | B7: Harris SA; Solomon KR. 1992. Human exposure to 2,4-D following controlled activities on recently sprayed turf. J. Environ. Sci. Health. B27(1): 9-22.
A8: Hoerger and Kenaga 1972 | B8: Hoerger F; Kenaga EE. 1972. Pesticide residues on plants: Correlation of representative data as a basis for estimation of their magnitude in the environment. In: Environmental Quality and Safety, Volume I: Global Aspects of Toxicology and Technology as Applied to the Environment. F. Coulston and F. Kerte (eds.). Academic Press, New York, NY. pp. 9-28.
A9: ICRP 1975 | B9: ICRP (International Commission on Radiologic Protection). 1975. Report of the Task Group on Reference Man. Recommendations of the International Commission on Radiological Protection (ICRP) Publ. No. 23. Pergamon Press, New York, NY.
A10: Knisel et al. 1992 | B10: Knisel WG; Davis FM; Leonard RA. 1992. GLEAMS Version 2.0 User Manual. U.S. Department of Agriculture, Agricultural Research Service, Southeast Watershed Research Laboratory, Tifton, GA. 202pp
A11: Manugistics 1995 | B11: Manugistics. 1995. Statgraphics Plus for Windows. Version 3. Available from Manugistics, Inc. Rockville, Maryland.
A12: Mason and Johnson 1987 | B12: Mason RW; Johnson BL. 1987. Ergonomic factors in chemical hazard control. In: Handbook of Human Factors. Salveny, G; ed. John Wiley and Sons, New York, NY. pp. 772-741.
A13: Mendenhall and Scheaffer 1973 | B13: Mendenhall W; Scheaffer RF. 1973. Mathematical Statistics with Applications. Duxbury Press, North Scituate, Massachusetts. 461 pp. plus appendices.
A14: Ruffle et al. 1994 | B14: Ruffle B; Burmaster DE; Anderson PD; Gordon HD. 1994. Lognormal distributions for fish consumption by the general U.S. population. Risk Analy. 14(4): 395-404.
A15: SERA 1997 | B15: SERA (Syracuse Environmental Research Associates, Inc.). 1997. Reevaluation of Methods for Assessing Worker Exposure to Pesticides, SERA TR 96-21-08-01, draft dated December 31, 1997. Prepared under USDA/FS Contract 53-3187-5-12. Syracuse Environmental Research Associates, Inc., Fayetteville, NY.
A16: SERA 2007 | B16: SERA (Syracuse Environmental Research Associates, Inc.). 2007. Preparation of Environmental Documentation and Risk Assessments, SERA MD 2007-01a, draft dated July 2001. Syracuse Environmental Research Associates, Inc., Fayetteville, NY. Available at www.sera-inc.com.
A17: Teske et al. 2001 | B17: Teske ME; Bird SL; Esterly DM; Ray SL; Perry SG. 2001. A User’s Guide for AgDRIFT 2.0: A Tiered Approach for the Assesment of Spray Drift. Continuum Dynamics, Inc. Public Use Version. C.D.I. Report No. 01-01. Available, with executable model at: http://www.agdrift.com
A18: USDA 1989a | B18: USDA (U.S. Department of Agriculture/Forest Service). 1989a. Final Environmental Impact Statement: Vegetation Management in the Coastal Plain/Piedmont, Management Bulletin R8-MB-23, dated January, 1989. 1213 pp.
A19: USDA 1989b | B19: USDA (U.S. Department of Agriculture/Forest Service). 1989b. Draft Environmental Impact Statement: Vegetation Management in the Ozark/Ouachita Mountains, Management Bulletin R8-MB-23, dated June, 1989. 499 pp.
A20: USDA 1989c | B20: USDA (U.S. Department of Agriculture/Forest Service). 1989c. Final Environmental Impact Statement: Vegetation Management in the Appalachian Mountains, Management Bulletin R8-MB-38, dated July, 1989. 1104 pp.
A21: U.S. EPA/OPP 1999 | B21: U.S. EPA/OPP ((U.S. Environmental Protection Agency/Office of Pesticide Programs). 1999. ECOFRAM: Terrestrial ECOFRAM Terrestrial Draft Report. Ecological Committee on FIFRA Risk Assessment Methods(ECOFRAM). Report dated May 10, 1999. Available at: http://www.epa.gov/oppefed1/ ecorisk/terrreport.pdf.
A22: U.S. EPA/ORD 1992 | B22: U.S. EPA/ORD (U.S. Environmental Protection Agency/Office of Research and Development). 1992. Dermal Exposure Assessment: Principles and Applications. EPA/600/8-91/011B. Interim Report. Exposure Assessment Group, Office of Health and Environmental Assessment, Washington, DC.
A23: U.S. EPA/ORD 1993 | B23: U.S. EPA/ORD (U.S. Environmental Protection Agency/Office of Research and Development). 1993. Wildlife Exposure Factors Handbook. Volumes 1 and 2. EPA/600/R-93/187a,b. Pagination not continuous. Available NTIS: PB94-174778 and PB94-174779.
A24: U.S. EPA/ORD 1996 | B24: U.S. EPA (U.S. Environmental Protection Agency/Office of Research and Development). 1996. Exposure Factors Handbook. National Center for Environmental Assessment, U.S. EPA, Washington, DC. EPA/600/P-95/002Ba-c. Avail. NTIS: PB97-117683, 97-117691, PB97-117709.
A25: Wolfram Research 1997 | B25: Wolfram Research. 1997. Mathematica Version 3.0.1. Available from Wolfram Research, Inc. Champaign, IL.
A26: N/A | B26: Not applicable
A27: Fletcher et al. 1994 | B27: Fletcher JS; Nellessen JE; Pfleeger TG. 1994. Literature review and evaluation of the EPA food-chain (Kenega) nomogram, an instrument for estimating pesticide residues on plants. Environ. Toxicol. Chem. 13(9):1383-1391.
A28: U.S. EPA/ORD 1985 | B28: U.S. EPA/ORD (U.S. Environmental Protection Agency/Office of Research and Development). 1985. Development of Statistical Distributions or Ranges of Standard Factors Used in Exposure Assessments, Report prepared by GCA Corp., Chapel Hill. Available from NTIS: PB85-242667.
A29: Default | B29: These are plausible default values that are typically used in SERA risk assessments.
A30: U.S. EPA/ORD 1997 | B30: U.S. EPA (U.S. Environmental Protection Agency/Office of Research and Development). 1996. Exposure Factors Handbook. National Center for Environmental Assessment, U.S. EPA, Washington, DC. EPA/600/P-95/002Fa. Available at: http://rais.ornl.gov/homepage/EFH_Final_1997_EPA600P95002Fa.pdf
A31: SERA 2005 | B31: SERA (Syracuse Environmental Research Associates, Inc.). 2005. Hexazinone - Human Health and Ecological Risk Assessment– Final Report, SERA SERA TR 05-43-20-03d, Final Report dated October 25, 2005. Available at: http://www.fs.fed.us/foresthealth/pesticide/risk.shtml.
A32: Humphery and Dykes 2008 | B32: Humphrey JAC; Dykes ES. 2008. Thermal energy conduction in a honey bee comb due to cell-heating bees. J Theoretical Biology. 250 (1): 194-208.
A33: Reichle et al. 1973 | B33: Reichle DE, Goldstein RA; Van Hook RI; Dodson DJ. 1973. Analysis of Insect Consumption in a Forest Canopy. Ecology. 54: 1076-1084.
A34: Waldbauer 1968 | B34: Waldbauer GP. 1968. The consumption and utilization of food by insects. Advan Insect Physiol. 5: 229-288
A35: Ratnapalan et al. 2003 | B35: Ratnapalan S; Potylitsina Y; Tan LH; Roifman M; Koren G. 2003. Measuring a toddler's mouthful: toxicologic considerations. J Pediatr. 142(6):729-30.
A36: SERA 2010 | B36: SERA (Syracuse Environmental Research Associates, Inc.). 2010. Strychnine Human Health and Ecological Risk Assessment, SERA TR-052-17-02a, draft dated February 22, 2010. Syracuse Environmental Research Associates, Inc., Manlius, NY. Available at www.sera-inc.com.
A37: Winston 1987 | B37: Winston ML. 1987. The Biology of the Honey Bee. Harvard University Press, Cambridge, MA. ISBN 0-674-07409-2 280 pp.
A38: Budavari 1989 | B38: Budavari S. (Ed). 1989. The Merck Index: An Encyclopedia of Chemicals, Drugs,and Biologicals, 11th ed. Merck & Co., Inc., Rahway, New Jersey.
A39: Sibley 2000 | B39: Sibley DA. 2000. The Sibley Guide to Birds. National Audubon Society, Chanticleer Press Edition. Alfred A. Knopf Inc., New York. 545 pp.
A40: Nagy 2005 | B40: Nagy KA. 2005. Field metabolic rate and body size. Journal of Experimental Biology. 208: 1621-1625.
A41: Reid 2006 | B41: Reid FA. 2006. A Field Guide to Mammals of North America North of Mexico. Fourth Edition. The Peterson Field Guide Series. Houghton Mifflin Company, Boston MA. 570 pp.

Sheet PlntRunoV5 (hidden)
A1: Summary of Exposure Assessment and Risk Characterization for Terrestrial Plants from Runoff
A2: Short Title | B2: Runoff to terrestrial plants
A3: Receptor | B3: Terrestrial vegetation
A4: Duration | B4: Acute
A5: User-Specified Gleams-Driver File | B5: None
A6: Parameter/Assumption | B6: Code / Range | C6: Value | D6: Units | E6: Reference
A7: Worksheet Application Rate | B7: ApRtWB | C7: 0.1 | D7: lb/acre | E7: Prog!ApRt
A8: Offsite Application Rates Inputs
A9: Run ID: | B9: See Risk Assessment
A10: Application Rate Used in Run: | B10: ApRtRun | C10: 1 | D10: lb/acre
A11: Functional Off-site Application Rate | B11: ApRtOffsite
B12: Central | C12: 0.027 | D12: lb/acre
B13: Lower | C13: 0.0095
B14: Upper | C14: 0.057
A15: Calculated Values
A16: Normalized Off-site Functional Application Rate | B16: NormApRtOffsite | C16: ApRtOffsite / ApRtRun
B17: Central | C17: =C12/C$10 -> 0.027 | D17: Unitless | E17: Eq
B18: Lower | C18: =C13/C$10 -> 0.0095 | E18: Eq
B19: Upper | C19: =C14/C$10 -> 0.057 | E19: Eq
A20: Off-site Application Rate at Workbook Application Rate | B20: ApRtWB | C20: ApRtWB x NormApRtOffsite
B21: Central | C21: =C17*C$7 -> 0.0027 | D21: lb/acre | E21: Eq
B22: Lower | C22: =C18*C$7 -> 0.00095 | E22: Eq
B23: Upper | C23: =C19*C$7 -> 0.0057 | E23: Eq
A24: Toxicity Values (seedling emergence) in units of lbs/acre
C25: Sensitive | D25: Tolerant
B26: Endpoint
C27: 0.0037 | D27: 0.37
A28: Hazard Quotients
B29: Central | C29: =IF(ISNUMBER(C$27), $C21/C$27, "N/A") -> 0.7297297297 | D29: 0.007297297297
B30: Lower | C30: 0.2567567568 | D30: 0.002567567568
B31: Upper | C31: 1.540540541 | D31: 0.01540540541
